Workbook

Sheet DailyChallengeConfig
B1: Id | C1: Type | D1: OpenRules | E1: Quality | F1: Reward | G1: RewardView | H1: MonsterId | I1: PrivilegeId
B2: int | C2: int | D2: mut,int#int,2 | E2: int | F2: mut,int#int,1 | G2: mut,int#int,2 | H2: int | I2: mut,int#int,1
B3: 2 | C3: 2 | D3: 2 | E3: 3 | F3: 4 | G3: 3 | H3: 2 | I3: 2
B4: ID | C4: 副本类型 1金币 2经验 3角色碎片 4法宝 5魂印 | D4: 开启条件 1#玩家等级 2#关卡id 3#玩家战力 | E4: 难度 1简单 2普通 3困难 4噩梦 5炼狱 6地狱 7深渊 8传奇 9神话 | F4: 通关奖励 | G4: 奖励预览 | H4: 关卡怪物组 | I4: 购买次数上限特权#免费特权
A5: 默认值 | B5: 0 | D5: null | F5: 0
A6: 正确性校对
A7: 校对值
B8: 1 | C8: 1 | D8: 1#2|3#2000 | E8: 1 | F8: 9001 | G8: 14#100000|4#10 | H8: 60001 | I8: 101#106
B9: 2 | C9: 1 | D9: 1#2|3#20000 | E9: 2 | F9: 9002 | G9: 14#150000|4#20 | H9: 60002 | I9: 101#106
B10: 3 | C10: 1 | D10: 1#2|3#100000 | E10: 3 | F10: 9003 | G10: 14#200000|4#30 | H10: 60003 | I10: 101#106
B11: 4 | C11: 1 | D11: 1#2|3#250000 | E11: 4 | F11: 9004 | G11: 14#250000|4#40 | H11: 60004 | I11: 101#106
B12: 5 | C12: 1 | D12: 1#2|3#480000 | E12: 5 | F12: 9005 | G12: 14#300000|4#50 | H12: 60005 | I12: 101#106
B13: 6 | C13: 1 | D13: 1#2|3#920000 | E13: 6 | F13: 9006 | G13: 14#350000|4#60 | H13: 60006 | I13: 101#106
B14: 7 | C14: 1 | D14: 1#2|3#1360000 | E14: 7 | F14: 9007 | G14: 14#400000|4#70 | H14: 60007 | I14: 101#106
B15: 8 | C15: 1 | D15: 1#2|3#1920000 | E15: 8 | F15: 9008 | G15: 14#450000|4#80 | H15: 60008 | I15: 101#106
B16: 9 | C16: 1 | D16: 1#2|3#2520000 | E16: 9 | F16: 9009 | G16: 14#500000|4#100 | H16: 60009 | I16: 101#106
B17: 10 | C17: 2 | D17: 1#2|3#2000 | E17: 1 | F17: 9010 | G17: 3#80000 | H17: 60101 | I17: 102#107
B18: 11 | C18: 2 | D18: 1#2|3#40000 | E18: 2 | F18: 9011 | G18: 3#110000 | H18: 60102 | I18: 102#107
B19: 12 | C19: 2 | D19: 1#2|3#120000 | E19: 3 | F19: 9012 | G19: 3#140000 | H19: 60103 | I19: 102#107
B20: 13 | C20: 2 | D20: 1#2|3#280000 | E20: 4 | F20: 9013 | G20: 3#170000 | H20: 60104 | I20: 102#107
B21: 14 | C21: 2 | D21: 1#2|3#560000 | E21: 5 | F21: 9014 | G21: 3#200000 | H21: 60105 | I21: 102#107
B22: 15 | C22: 2 | D22: 1#2|3#1000000 | E22: 6 | F22: 9015 | G22: 3#230000 | H22: 60106 | I22: 102#107
B23: 16 | C23: 2 | D23: 1#2|3#1520000 | E23: 7 | F23: 9016 | G23: 3#260000 | H23: 60107 | I23: 102#107
B24: 17 | C24: 2 | D24: 1#2|3#2070000 | E24: 8 | F24: 9017 | G24: 3#300000 | H24: 60108 | I24: 102#107
B25: 18 | C25: 2 | D25: 1#2|3#2660000 | E25: 9 | F25: 9018 | G25: 3#350000 | H25: 60109 | I25: 102#107
B26: 19 | C26: 3 | D26: 1#2|3#2000 | E26: 1 | F26: 9019 | G26: 12001#10|12012#2 | H26: 60201 | I26: 103#108
B27: 20 | C27: 3 | D27: 1#2|3#60000 | E27: 2 | F27: 9020 | G27: 12001#20|12012#5 | H27: 60202 | I27: 103#108
B28: 21 | C28: 3 | D28: 1#2|3#140000 | E28: 3 | F28: 9021 | G28: 12001#20|12012#10 | H28: 60203 | I28: 103#108
B29: 22 | C29: 3 | D29: 1#2|3#320000 | E29: 4 | F29: 9022 | G29: 12001#20|12012#15 | H29: 60204 | I29: 103#108
B30: 23 | C30: 3 | D30: 1#2|3#640000 | E30: 5 | F30: 9023 | G30: 12001#20|12012#20 | H30: 60205 | I30: 103#108
B31: 24 | C31: 3 | D31: 1#2|3#1080000 | E31: 6 | F31: 9024 | G31: 12001#30|12012#25 | H31: 60206 | I31: 103#108
B32: 25 | C32: 3 | D32: 1#2|3#1680000 | E32: 7 | F32: 9025 | G32: 12001#30|12012#30 | H32: 60207 | I32: 103#108
B33: 26 | C33: 3 | D33: 1#2|3#2230000 | E33: 8 | F33: 9026 | G33: 12012#30|12013#1 | H33: 60208 | I33: 103#108
B34: 27 | C34: 3 | D34: 1#2|3#2840000 | E34: 9 | F34: 9027 | G34: 12012#30|12013#2 | H34: 60209 | I34: 103#108
B35: 28 | C35: 4 | D35: 1#2|3#2000 | E35: 1 | F35: 9028 | G35: 1001#1000 | H35: 60301 | I35: 104#109
B36: 29 | C36: 4 | D36: 1#2|3#80000 | E36: 2 | F36: 9029 | G36: 1001#1250 | H36: 60302 | I36: 104#109
B37: 30 | C37: 4 | D37: 1#2|3#160000 | E37: 3 | F37: 9030 | G37: 1001#1500 | H37: 60303 | I37: 104#109
B38: 31 | C38: 4 | D38: 1#2|3#350000 | E38: 4 | F38: 9031 | G38: 1001#1750 | H38: 60304 | I38: 104#109
B39: 32 | C39: 4 | D39: 1#2|3#720000 | E39: 5 | F39: 9032 | G39: 1001#2000 | H39: 60305 | I39: 104#109
B40: 33 | C40: 4 | D40: 1#2|3#1160000 | E40: 6 | F40: 9033 | G40: 1001#2250 | H40: 60306 | I40: 104#109
B41: 34 | C41: 4 | D41: 1#2|3#1840000 | E41: 7 | F41: 9034 | G41: 1001#2500 | H41: 60307 | I41: 104#109
B42: 35 | C42: 4 | D42: 1#2|3#2390000 | E42: 8 | F42: 9035 | G42: 1001#2750 | H42: 60308 | I42: 104#109
B43: 36 | C43: 4 | D43: 1#2|3#3000000 | E43: 9 | F43: 9036 | G43: 1001#3000 | H43: 60309 | I43: 104#109
B44: 37 | C44: 5 | D44: 1#2|3#2000 | E44: 1 | F44: 9037 | G44: 66#80 | H44: 60401 | I44: 105#110
B45: 38 | C45: 5 | D45: 1#2|3#100000 | E45: 2 | F45: 9038 | G45: 66#90 | H45: 60402 | I45: 105#110
B46: 39 | C46: 5 | D46: 1#2|3#180000 | E46: 3 | F46: 9039 | G46: 66#100 | H46: 60403 | I46: 105#110
B47: 40 | C47: 5 | D47: 1#2|3#390000 | E47: 4 | F47: 9040 | G47: 66#110 | H47: 60404 | I47: 105#110
B48: 41 | C48: 5 | D48: 1#2|3#800000 | E48: 5 | F48: 9041 | G48: 66#120 | H48: 60405 | I48: 105#110
B49: 42 | C49: 5 | D49: 1#2|3#1240000 | E49: 6 | F49: 9042 | G49: 66#140 | H49: 60406 | I49: 105#110
B50: 43 | C50: 5 | D50: 1#2|3#2000000 | E50: 7 | F50: 9043 | G50: 66#160 | H50: 60407 | I50: 105#110
B51: 44 | C51: 5 | D51: 1#2|3#2550000 | E51: 8 | F51: 9044 | G51: 66#180 | H51: 60408 | I51: 105#110
B52: 45 | C52: 5 | D52: 1#2|3#3160000 | E52: 9 | F52: 9045 | G52: 66#200 | H52: 60409 | I52: 105#110

Sheet Sheet1
L1: 7 | M1: 8 | N1: 9 | O1: 10 | P1: 10
A2: 1 | B2: 6000 | C2: =B2*0.9 -> 5400 | D2: =$C2/6/4/0.15 -> 1500 | E2: =$C2/6/4/1 -> 225 | F2: =$C2/6/4/3 -> 75 | G2: =$C2/6/4/3 -> 75 | J2: 1 | K2: =VLOOKUP(J2,$A:$B,2,FALSE) -> 6000 | L2: =VLOOKUP($K2,[1]关卡对应玩家属性表!$Q:$Z,L$1,FALSE) -> 2 | M2: =VLOOKUP($K2,[1]关卡对应玩家属性表!$Q:$Z,M$1,FALSE) -> 2142 | N2: =VLOOKUP($K2,[1]关卡对应玩家属性表!$Q:$Z,N$1,FALSE) -> 459 | O2: =VLOOKUP($K2,[1]关卡对应玩家属性表!$Q:$Z,O$1,FALSE) -> 153 | P2: =VLOOKUP($K2,[1]关卡对应玩家属性表!$Q:$Z,P$1,FALSE) -> 153
A3: 2 | B3: 20000 | C3: =B3*0.9 -> 18000 | D3: =$C3/6/4/0.15 -> 5000 | E3: =$C3/6/4/1 -> 750 | F3: =$C3/6/4/3 -> 250 | G3: 250 | J3: 1 | K3: =VLOOKUP(J3,$A:$B,2,FALSE) -> 6000 | L3: =VLOOKUP($K3,[1]关卡对应玩家属性表!$Q:$Z,L$1,FALSE) -> 2 | M3: =VLOOKUP($K3,[1]关卡对应玩家属性表!$Q:$Z,M$1,FALSE) -> 2142 | N3: =VLOOKUP($K3,[1]关卡对应玩家属性表!$Q:$Z,N$1,FALSE) -> 459 | O3: =VLOOKUP($K3,[1]关卡对应玩家属性表!$Q:$Z,O$1,FALSE) -> 153 | P3: =VLOOKUP($K3,[1]关卡对应玩家属性表!$Q:$Z,P$1,FALSE) -> 153
A4: 3 | B4: 99000 | C4: 89100 | D4: 24750 | E4: 3712.5 | F4: 1237.5 | G4: 1237.5 | J4: 1 | K4: 6000 | L4: =VLOOKUP($K4,[1]关卡对应玩家属性表!$Q:$Z,L$1,FALSE) -> 2 | M4: =VLOOKUP($K4,[1]关卡对应玩家属性表!$Q:$Z,M$1,FALSE) -> 2142 | N4: =VLOOKUP($K4,[1]关卡对应玩家属性表!$Q:$Z,N$1,FALSE) -> 459 | O4: =VLOOKUP($K4,[1]关卡对应玩家属性表!$Q:$Z,O$1,FALSE) -> 153 | P4: =VLOOKUP($K4,[1]关卡对应玩家属性表!$Q:$Z,P$1,FALSE) -> 153
A5: 4 | B5: 204000 | C5: 183600 | D5: 51000 | E5: 7650 | F5: 2550 | G5: 2550 | J5: 1 | K5: 6000 | L5: =VLOOKUP($K5,[1]关卡对应玩家属性表!$Q:$Z,L$1,FALSE) -> 2 | M5: =VLOOKUP($K5,[1]关卡对应玩家属性表!$Q:$Z,M$1,FALSE) -> 2142 | N5: =VLOOKUP($K5,[1]关卡对应玩家属性表!$Q:$Z,N$1,FALSE) -> 459 | O5: =VLOOKUP($K5,[1]关卡对应玩家属性表!$Q:$Z,O$1,FALSE) -> 153 | P5: =VLOOKUP($K5,[1]关卡对应玩家属性表!$Q:$Z,P$1,FALSE) -> 153
A6: 5 | B6: 332000 | C6: 298800 | D6: 83000 | E6: 12450 | F6: 4150 | G6: 4150 | J6: 1 | K6: 6000 | L6: =VLOOKUP($K6,[1]关卡对应玩家属性表!$Q:$Z,L$1,FALSE) -> 2 | M6: =VLOOKUP($K6,[1]关卡对应玩家属性表!$Q:$Z,M$1,FALSE) -> 2142 | N6: =VLOOKUP($K6,[1]关卡对应玩家属性表!$Q:$Z,N$1,FALSE) -> 459 | O6: =VLOOKUP($K6,[1]关卡对应玩家属性表!$Q:$Z,O$1,FALSE) -> 153 | P6: =VLOOKUP($K6,[1]关卡对应玩家属性表!$Q:$Z,P$1,FALSE) -> 153
A7: 6 | B7: 1060000 | C7: 954000 | D7: 265000 | E7: 39750 | F7: 13250 | G7: 13250 | J7: 1 | K7: 6000 | L7: =VLOOKUP($K7,[1]关卡对应玩家属性表!$Q:$Z,L$1,FALSE) -> 2 | M7: =VLOOKUP($K7,[1]关卡对应玩家属性表!$Q:$Z,M$1,FALSE) -> 2142 | N7: =VLOOKUP($K7,[1]关卡对应玩家属性表!$Q:$Z,N$1,FALSE) -> 459 | O7: =VLOOKUP($K7,[1]关卡对应玩家属性表!$Q:$Z,O$1,FALSE) -> 153 | P7: =VLOOKUP($K7,[1]关卡对应玩家属性表!$Q:$Z,P$1,FALSE) -> 153
A8: 7 | B8: 1165000 | C8: 1048500 | D8: 291250 | E8: 43687.5 | F8: 14562.5 | G8: 14562.5 | J8: =J2+1 -> 2 | K8: 20000 | L8: =VLOOKUP($K8,[1]关卡对应玩家属性表!$Q:$Z,L$1,FALSE) -> 27 | M8: =VLOOKUP($K8,[1]关卡对应玩家属性表!$Q:$Z,M$1,FALSE) -> 5094 | N8: =VLOOKUP($K8,[1]关卡对应玩家属性表!$Q:$Z,N$1,FALSE) -> 962 | O8: =VLOOKUP($K8,[1]关卡对应玩家属性表!$Q:$Z,O$1,FALSE) -> 283 | P8: =VLOOKUP($K8,[1]关卡对应玩家属性表!$Q:$Z,P$1,FALSE) -> 283
A9: 8 | B9: 1916000 | C9: 1724400 | D9: 479000 | E9: 71850 | F9: 23950 | G9: 23950 | J9: =J3+1 -> 2 | K9: 20000 | L9: =VLOOKUP($K9,[1]关卡对应玩家属性表!$Q:$Z,L$1,FALSE) -> 27 | M9: =VLOOKUP($K9,[1]关卡对应玩家属性表!$Q:$Z,M$1,FALSE) -> 5094 | N9: =VLOOKUP($K9,[1]关卡对应玩家属性表!$Q:$Z,N$1,FALSE) -> 962 | O9: =VLOOKUP($K9,[1]关卡对应玩家属性表!$Q:$Z,O$1,FALSE) -> 283 | P9: =VLOOKUP($K9,[1]关卡对应玩家属性表!$Q:$Z,P$1,FALSE) -> 283
A10: 9 | B10: 2505000 | C10: 2254500 | D10: 626250 | E10: 93937.5 | F10: 31312.5 | G10: 31312.5 | J10: 2 | K10: 20000 | L10: =VLOOKUP($K10,[1]关卡对应玩家属性表!$Q:$Z,L$1,FALSE) -> 27 | M10: =VLOOKUP($K10,[1]关卡对应玩家属性表!$Q:$Z,M$1,FALSE) -> 5094 | N10: =VLOOKUP($K10,[1]关卡对应玩家属性表!$Q:$Z,N$1,FALSE) -> 962 | O10: =VLOOKUP($K10,[1]关卡对应玩家属性表!$Q:$Z,O$1,FALSE) -> 283 | P10: =VLOOKUP($K10,[1]关卡对应玩家属性表!$Q:$Z,P$1,FALSE) -> 283
A11: 10 | B11: 8000 | C11: 7200 | D11: 2000 | E11: 300 | F11: 100 | G11: 100 | J11: 2 | K11: 20000 | L11: =VLOOKUP($K11,[1]关卡对应玩家属性表!$Q:$Z,L$1,FALSE) -> 27 | M11: =VLOOKUP($K11,[1]关卡对应玩家属性表!$Q:$Z,M$1,FALSE) -> 5094 | N11: =VLOOKUP($K11,[1]关卡对应玩家属性表!$Q:$Z,N$1,FALSE) -> 962 | O11: =VLOOKUP($K11,[1]关卡对应玩家属性表!$Q:$Z,O$1,FALSE) -> 283 | P11: =VLOOKUP($K11,[1]关卡对应玩家属性表!$Q:$Z,P$1,FALSE) -> 283
A12: 11 | B12: 33000 | C12: 29700 | D12: 8250 | E12: 1237.5 | F12: 412.5 | G12: 412.5 | J12: 2 | K12: 20000 | L12: =VLOOKUP($K12,[1]关卡对应玩家属性表!$Q:$Z,L$1,FALSE) -> 27 | M12: =VLOOKUP($K12,[1]关卡对应玩家属性表!$Q:$Z,M$1,FALSE) -> 5094 | N12: =VLOOKUP($K12,[1]关卡对应玩家属性表!$Q:$Z,N$1,FALSE) -> 962 | O12: =VLOOKUP($K12,[1]关卡对应玩家属性表!$Q:$Z,O$1,FALSE) -> 283 | P12: =VLOOKUP($K12,[1]关卡对应玩家属性表!$Q:$Z,P$1,FALSE) -> 283
A13: 12 | B13: 109000 | C13: 98100 | D13: 27250 | E13: 4087.5 | F13: 1362.5 | G13: 1362.5 | J13: 2 | K13: 20000 | L13: =VLOOKUP($K13,[1]关卡对应玩家属性表!$Q:$Z,L$1,FALSE) -> 27 | M13: =VLOOKUP($K13,[1]关卡对应玩家属性表!$Q:$Z,M$1,FALSE) -> 5094 | N13: =VLOOKUP($K13,[1]关卡对应玩家属性表!$Q:$Z,N$1,FALSE) -> 962 | O13: =VLOOKUP($K13,[1]关卡对应玩家属性表!$Q:$Z,O$1,FALSE) -> 283 | P13: =VLOOKUP($K13,[1]关卡对应玩家属性表!$Q:$Z,P$1,FALSE) -> 283
A14: 13 | B14: 291000 | C14: 261900 | D14: 72750 | E14: 10912.5 | F14: 3637.5 | G14: 3637.5 | J14: 3 | K14: 99000 | L14: =VLOOKUP($K14,[1]关卡对应玩家属性表!$Q:$Z,L$1,FALSE) -> 53 | M14: =VLOOKUP($K14,[1]关卡对应玩家属性表!$Q:$Z,M$1,FALSE) -> 30745 | N14: =VLOOKUP($K14,[1]关卡对应玩家属性表!$Q:$Z,N$1,FALSE) -> 5330 | O14: =VLOOKUP($K14,[1]关卡对应玩家属性表!$Q:$Z,O$1,FALSE) -> 1325 | P14: =VLOOKUP($K14,[1]关卡对应玩家属性表!$Q:$Z,P$1,FALSE) -> 1325
A15: 14 | B15: 570000 | C15: 513000 | D15: 142500 | E15: 21375 | F15: 7125 | G15: 7125 | J15: 3 | K15: 99000 | L15: =VLOOKUP($K15,[1]关卡对应玩家属性表!$Q:$Z,L$1,FALSE) -> 53 | M15: =VLOOKUP($K15,[1]关卡对应玩家属性表!$Q:$Z,M$1,FALSE) -> 30745 | N15: =VLOOKUP($K15,[1]关卡对应玩家属性表!$Q:$Z,N$1,FALSE) -> 5330 | O15: =VLOOKUP($K15,[1]关卡对应玩家属性表!$Q:$Z,O$1,FALSE) -> 1325 | P15: =VLOOKUP($K15,[1]关卡对应玩家属性表!$Q:$Z,P$1,FALSE) -> 1325
A16: 15 | B16: 1063000 | C16: 956700 | D16: 265750 | E16: 39862.5 | F16: 13287.5 | G16: 13287.5 | J16: 3 | K16: 99000 | L16: =VLOOKUP($K16,[1]关卡对应玩家属性表!$Q:$Z,L$1,FALSE) -> 53 | M16: =VLOOKUP($K16,[1]关卡对应玩家属性表!$Q:$Z,M$1,FALSE) -> 30745 | N16: =VLOOKUP($K16,[1]关卡对应玩家属性表!$Q:$Z,N$1,FALSE) -> 5330 | O16: =VLOOKUP($K16,[1]关卡对应玩家属性表!$Q:$Z,O$1,FALSE) -> 1325 | P16: =VLOOKUP($K16,[1]关卡对应玩家属性表!$Q:$Z,P$1,FALSE) -> 1325
A17: 16 | B17: 1670000 | C17: 1503000 | D17: 417500 | E17: 62625 | F17: 20875 | G17: 20875 | J17: 3 | K17: 99000 | L17: =VLOOKUP($K17,[1]关卡对应玩家属性表!$Q:$Z,L$1,FALSE) -> 53 | M17: =VLOOKUP($K17,[1]关卡对应玩家属性表!$Q:$Z,M$1,FALSE) -> 30745 | N17: =VLOOKUP($K17,[1]关卡对应玩家属性表!$Q:$Z,N$1,FALSE) -> 5330 | O17: =VLOOKUP($K17,[1]关卡对应玩家属性表!$Q:$Z,O$1,FALSE) -> 1325 | P17: =VLOOKUP($K17,[1]关卡对应玩家属性表!$Q:$Z,P$1,FALSE) -> 1325
A18: 17 | B18: 2070000 | C18: 1863000 | D18: 517500 | E18: 77625 | F18: 25875 | G18: 25875 | J18: 3 | K18: 99000 | L18: =VLOOKUP($K18,[1]关卡对应玩家属性表!$Q:$Z,L$1,FALSE) -> 53 | M18: =VLOOKUP($K18,[1]关卡对应玩家属性表!$Q:$Z,M$1,FALSE) -> 30745 | N18: =VLOOKUP($K18,[1]关卡对应玩家属性表!$Q:$Z,N$1,FALSE) -> 5330 | O18: =VLOOKUP($K18,[1]关卡对应玩家属性表!$Q:$Z,O$1,FALSE) -> 1325 | P18: =VLOOKUP($K18,[1]关卡对应玩家属性表!$Q:$Z,P$1,FALSE) -> 1325
A19: 18 | B19: 2664000 | C19: 2397600 | D19: 666000 | E19: 99900 | F19: 33300 | G19: 33300 | J19: 3 | K19: 99000 | L19: =VLOOKUP($K19,[1]关卡对应玩家属性表!$Q:$Z,L$1,FALSE) -> 53 | M19: =VLOOKUP($K19,[1]关卡对应玩家属性表!$Q:$Z,M$1,FALSE) -> 30745 | N19: =VLOOKUP($K19,[1]关卡对应玩家属性表!$Q:$Z,N$1,FALSE) -> 5330 | O19: =VLOOKUP($K19,[1]关卡对应玩家属性表!$Q:$Z,O$1,FALSE) -> 1325 | P19: =VLOOKUP($K19,[1]关卡对应玩家属性表!$Q:$Z,P$1,FALSE) -> 1325
A20: 19 | B20: 12000 | C20: 10800 | D20: 3000 | E20: 450 | F20: 150 | G20: 150 | J20: 4 | K20: 204000 | L20: =VLOOKUP($K20,[1]关卡对应玩家属性表!$Q:$Z,L$1,FALSE) -> 70 | M20: =VLOOKUP($K20,[1]关卡对应玩家属性表!$Q:$Z,M$1,FALSE) -> 69858 | N20: =VLOOKUP($K20,[1]关卡对应玩家属性表!$Q:$Z,N$1,FALSE) -> 11690 | O20: =VLOOKUP($K20,[1]关卡对应玩家属性表!$Q:$Z,O$1,FALSE) -> 2349 | P20: =VLOOKUP($K20,[1]关卡对应玩家属性表!$Q:$Z,P$1,FALSE) -> 2349
A21: 20 | B21: 59000 | C21: 53100 | D21: 14750 | E21: 2212.5 | F21: 737.5 | G21: 737.5 | J21: 4 | K21: 204000 | L21: =VLOOKUP($K21,[1]关卡对应玩家属性表!$Q:$Z,L$1,FALSE) -> 70 | M21: =VLOOKUP($K21,[1]关卡对应玩家属性表!$Q:$Z,M$1,FALSE) -> 69858 | N21: =VLOOKUP($K21,[1]关卡对应玩家属性表!$Q:$Z,N$1,FALSE) -> 11690 | O21: =VLOOKUP($K21,[1]关卡对应玩家属性表!$Q:$Z,O$1,FALSE) -> 2349 | P21: =VLOOKUP($K21,[1]关卡对应玩家属性表!$Q:$Z,P$1,FALSE) -> 2349
A22: 21 | B22: 113000 | C22: 101700 | D22: 28250 | E22: 4237.5 | F22: 1412.5 | G22: 1412.5 | J22: 4 | K22: 204000 | L22: =VLOOKUP($K22,[1]关卡对应玩家属性表!$Q:$Z,L$1,FALSE) -> 70 | M22: =VLOOKUP($K22,[1]关卡对应玩家属性表!$Q:$Z,M$1,FALSE) -> 69858 | N22: =VLOOKUP($K22,[1]关卡对应玩家属性表!$Q:$Z,N$1,FALSE) -> 11690 | O22: =VLOOKUP($K22,[1]关卡对应玩家属性表!$Q:$Z,O$1,FALSE) -> 2349 | P22: =VLOOKUP($K22,[1]关卡对应玩家属性表!$Q:$Z,P$1,FALSE) -> 2349
A23: 22 | B23: 307000 | C23: 276300 | D23: 76750 | E23: 11512.5 | F23: 3837.5 | G23: 3837.5 | J23: 4 | K23: 204000 | L23: =VLOOKUP($K23,[1]关卡对应玩家属性表!$Q:$Z,L$1,FALSE) -> 70 | M23: =VLOOKUP($K23,[1]关卡对应玩家属性表!$Q:$Z,M$1,FALSE) -> 69858 | N23: =VLOOKUP($K23,[1]关卡对应玩家属性表!$Q:$Z,N$1,FALSE) -> 11690 | O23: =VLOOKUP($K23,[1]关卡对应玩家属性表!$Q:$Z,O$1,FALSE) -> 2349 | P23: =VLOOKUP($K23,[1]关卡对应玩家属性表!$Q:$Z,P$1,FALSE) -> 2349
A24: 23 | B24: 590000 | C24: 531000 | D24: 147500 | E24: 22125 | F24: 7375 | G24: 7375 | J24: 4 | K24: 204000 | L24: =VLOOKUP($K24,[1]关卡对应玩家属性表!$Q:$Z,L$1,FALSE) -> 70 | M24: =VLOOKUP($K24,[1]关卡对应玩家属性表!$Q:$Z,M$1,FALSE) -> 69858 | N24: =VLOOKUP($K24,[1]关卡对应玩家属性表!$Q:$Z,N$1,FALSE) -> 11690 | O24: =VLOOKUP($K24,[1]关卡对应玩家属性表!$Q:$Z,O$1,FALSE) -> 2349 | P24: =VLOOKUP($K24,[1]关卡对应玩家属性表!$Q:$Z,P$1,FALSE) -> 2349
A25: 24 | B25: 1075000 | C25: 967500 | D25: 268750 | E25: 40312.5 | F25: 13437.5 | G25: 13437.5 | J25: 4 | K25: 204000 | L25: =VLOOKUP($K25,[1]关卡对应玩家属性表!$Q:$Z,L$1,FALSE) -> 70 | M25: =VLOOKUP($K25,[1]关卡对应玩家属性表!$Q:$Z,M$1,FALSE) -> 69858 | N25: =VLOOKUP($K25,[1]关卡对应玩家属性表!$Q:$Z,N$1,FALSE) -> 11690 | O25: =VLOOKUP($K25,[1]关卡对应玩家属性表!$Q:$Z,O$1,FALSE) -> 2349 | P25: =VLOOKUP($K25,[1]关卡对应玩家属性表!$Q:$Z,P$1,FALSE) -> 2349
A26: 25 | B26: 1689000 | C26: 1520100 | D26: 422250 | E26: 63337.5 | F26: 21112.5 | G26: 21112.5 | J26: 5 | K26: 332000 | L26: =VLOOKUP($K26,[1]关卡对应玩家属性表!$Q:$Z,L$1,FALSE) -> 80 | M26: =VLOOKUP($K26,[1]关卡对应玩家属性表!$Q:$Z,M$1,FALSE) -> 129626 | N26: =VLOOKUP($K26,[1]关卡对应玩家属性表!$Q:$Z,N$1,FALSE) -> 21360 | O26: =VLOOKUP($K26,[1]关卡对应玩家属性表!$Q:$Z,O$1,FALSE) -> 2582 | P26: =VLOOKUP($K26,[1]关卡对应玩家属性表!$Q:$Z,P$1,FALSE) -> 2582
A27: 26 | B27: 2233000 | C27: 2009700 | D27: 558250 | E27: 83737.5 | F27: 27912.5 | G27: 27912.5 | J27: 5 | K27: 332000 | L27: =VLOOKUP($K27,[1]关卡对应玩家属性表!$Q:$Z,L$1,FALSE) -> 80 | M27: =VLOOKUP($K27,[1]关卡对应玩家属性表!$Q:$Z,M$1,FALSE) -> 129626 | N27: =VLOOKUP($K27,[1]关卡对应玩家属性表!$Q:$Z,N$1,FALSE) -> 21360 | O27: =VLOOKUP($K27,[1]关卡对应玩家属性表!$Q:$Z,O$1,FALSE) -> 2582 | P27: =VLOOKUP($K27,[1]关卡对应玩家属性表!$Q:$Z,P$1,FALSE) -> 2582
A28: 27 | B28: 2842000 | C28: 2557800 | D28: 710500 | E28: 106575 | F28: 35525 | G28: 35525 | J28: 5 | K28: 332000 | L28: =VLOOKUP($K28,[1]关卡对应玩家属性表!$Q:$Z,L$1,FALSE) -> 80 | M28: =VLOOKUP($K28,[1]关卡对应玩家属性表!$Q:$Z,M$1,FALSE) -> 129626 | N28: =VLOOKUP($K28,[1]关卡对应玩家属性表!$Q:$Z,N$1,FALSE) -> 21360 | O28: =VLOOKUP($K28,[1]关卡对应玩家属性表!$Q:$Z,O$1,FALSE) -> 2582 | P28: =VLOOKUP($K28,[1]关卡对应玩家属性表!$Q:$Z,P$1,FALSE) -> 2582
A29: 28 | B29: 16000 | C29: 14400 | D29: 4000 | E29: 600 | F29: 200 | G29: 200 | J29: 5 | K29: 332000 | L29: =VLOOKUP($K29,[1]关卡对应玩家属性表!$Q:$Z,L$1,FALSE) -> 80 | M29: =VLOOKUP($K29,[1]关卡对应玩家属性表!$Q:$Z,M$1,FALSE) -> 129626 | N29: =VLOOKUP($K29,[1]关卡对应玩家属性表!$Q:$Z,N$1,FALSE) -> 21360 | O29: =VLOOKUP($K29,[1]关卡对应玩家属性表!$Q:$Z,O$1,FALSE) -> 2582 | P29: =VLOOKUP($K29,[1]关卡对应玩家属性表!$Q:$Z,P$1,FALSE) -> 2582
A30: 29 | B30: 94000 | C30: 84600 | D30: 23500 | E30: 3525 | F30: 1175 | G30: 1175 | J30: 5 | K30: 332000 | L30: =VLOOKUP($K30,[1]关卡对应玩家属性表!$Q:$Z,L$1,FALSE) -> 80 | M30: =VLOOKUP($K30,[1]关卡对应玩家属性表!$Q:$Z,M$1,FALSE) -> 129626 | N30: =VLOOKUP($K30,[1]关卡对应玩家属性表!$Q:$Z,N$1,FALSE) -> 21360 | O30: =VLOOKUP($K30,[1]关卡对应玩家属性表!$Q:$Z,O$1,FALSE) -> 2582 | P30: =VLOOKUP($K30,[1]关卡对应玩家属性表!$Q:$Z,P$1,FALSE) -> 2582
A31: 30 | B31: 123000 | C31: 110700 | D31: 30750 | E31: 4612.5 | F31: 1537.5 | G31: 1537.5 | J31: 5 | K31: 332000 | L31: =VLOOKUP($K31,[1]关卡对应玩家属性表!$Q:$Z,L$1,FALSE) -> 80 | M31: =VLOOKUP($K31,[1]关卡对应玩家属性表!$Q:$Z,M$1,FALSE) -> 129626 | N31: =VLOOKUP($K31,[1]关卡对应玩家属性表!$Q:$Z,N$1,FALSE) -> 21360 | O31: =VLOOKUP($K31,[1]关卡对应玩家属性表!$Q:$Z,O$1,FALSE) -> 2582 | P31: =VLOOKUP($K31,[1]关卡对应玩家属性表!$Q:$Z,P$1,FALSE) -> 2582
A32: 31 | B32: 327000 | C32: 294300 | D32: 81750 | E32: 12262.5 | F32: 4087.5 | G32: 4087.5 | J32: 6 | K32: 1060000 | L32: =VLOOKUP($K32,[1]关卡对应玩家属性表!$Q:$Z,L$1,FALSE) -> 101 | M32: =VLOOKUP($K32,[1]关卡对应玩家属性表!$Q:$Z,M$1,FALSE) -> 449742 | N32: =VLOOKUP($K32,[1]关卡对应玩家属性表!$Q:$Z,N$1,FALSE) -> 70357 | O32: =VLOOKUP($K32,[1]关卡对应玩家属性表!$Q:$Z,O$1,FALSE) -> 6348 | P32: =VLOOKUP($K32,[1]关卡对应玩家属性表!$Q:$Z,P$1,FALSE) -> 6348
A33: 32 | B33: 703000 | C33: 632700 | D33: 175750 | E33: 26362.5 | F33: 8787.5 | G33: 8787.5 | J33: 6 | K33: 1060000 | L33: =VLOOKUP($K33,[1]关卡对应玩家属性表!$Q:$Z,L$1,FALSE) -> 101 | M33: =VLOOKUP($K33,[1]关卡对应玩家属性表!$Q:$Z,M$1,FALSE) -> 449742 | N33: =VLOOKUP($K33,[1]关卡对应玩家属性表!$Q:$Z,N$1,FALSE) -> 70357 | O33: =VLOOKUP($K33,[1]关卡对应玩家属性表!$Q:$Z,O$1,FALSE) -> 6348 | P33: =VLOOKUP($K33,[1]关卡对应玩家属性表!$Q:$Z,P$1,FALSE) -> 6348
A34: 33 | B34: 1156000 | C34: 1040400 | D34: 289000 | E34: 43350 | F34: 14450 | G34: 14450 | J34: 6 | K34: 1060000 | L34: =VLOOKUP($K34,[1]关卡对应玩家属性表!$Q:$Z,L$1,FALSE) -> 101 | M34: =VLOOKUP($K34,[1]关卡对应玩家属性表!$Q:$Z,M$1,FALSE) -> 449742 | N34: =VLOOKUP($K34,[1]关卡对应玩家属性表!$Q:$Z,N$1,FALSE) -> 70357 | O34: =VLOOKUP($K34,[1]关卡对应玩家属性表!$Q:$Z,O$1,FALSE) -> 6348 | P34: =VLOOKUP($K34,[1]关卡对应玩家属性表!$Q:$Z,P$1,FALSE) -> 6348
A35: 34 | B35: 1846000 | C35: 1661400 | D35: 461500 | E35: 69225 | F35: 23075 | G35: 23075 | J35: 6 | K35: 1060000 | L35: =VLOOKUP($K35,[1]关卡对应玩家属性表!$Q:$Z,L$1,FALSE) -> 101 | M35: =VLOOKUP($K35,[1]关卡对应玩家属性表!$Q:$Z,M$1,FALSE) -> 449742 | N35: =VLOOKUP($K35,[1]关卡对应玩家属性表!$Q:$Z,N$1,FALSE) -> 70357 | O35: =VLOOKUP($K35,[1]关卡对应玩家属性表!$Q:$Z,O$1,FALSE) -> 6348 | P35: =VLOOKUP($K35,[1]关卡对应玩家属性表!$Q:$Z,P$1,FALSE) -> 6348
A36: 35 | B36: 2398000 | C36: 2158200 | D36: 599500 | E36: 89925 | F36: 29975 | G36: 29975 | J36: 6 | K36: 1060000 | L36: =VLOOKUP($K36,[1]关卡对应玩家属性表!$Q:$Z,L$1,FALSE) -> 101 | M36: =VLOOKUP($K36,[1]关卡对应玩家属性表!$Q:$Z,M$1,FALSE) -> 449742 | N36: =VLOOKUP($K36,[1]关卡对应玩家属性表!$Q:$Z,N$1,FALSE) -> 70357 | O36: =VLOOKUP($K36,[1]关卡对应玩家属性表!$Q:$Z,O$1,FALSE) -> 6348 | P36: =VLOOKUP($K36,[1]关卡对应玩家属性表!$Q:$Z,P$1,FALSE) -> 6348
A37: 36 | B37: 2998000 | C37: 2698200 | D37: 749500 | E37: 112425 | F37: 37475 | G37: 37475 | J37: 6 | K37: 1060000 | L37: =VLOOKUP($K37,[1]关卡对应玩家属性表!$Q:$Z,L$1,FALSE) -> 101 | M37: =VLOOKUP($K37,[1]关卡对应玩家属性表!$Q:$Z,M$1,FALSE) -> 449742 | N37: =VLOOKUP($K37,[1]关卡对应玩家属性表!$Q:$Z,N$1,FALSE) -> 70357 | O37: =VLOOKUP($K37,[1]关卡对应玩家属性表!$Q:$Z,O$1,FALSE) -> 6348 | P37: =VLOOKUP($K37,[1]关卡对应玩家属性表!$Q:$Z,P$1,FALSE) -> 6348
A38: 37 | B38: 20000 | C38: 18000 | D38: 5000 | E38: 750 | F38: 250 | G38: 250 | J38: 7 | K38: 1165000 | L38: =VLOOKUP($K38,[1]关卡对应玩家属性表!$Q:$Z,L$1,FALSE) -> 119 | M38: =VLOOKUP($K38,[1]关卡对应玩家属性表!$Q:$Z,M$1,FALSE) -> 498018 | N38: =VLOOKUP($K38,[1]关卡对应玩家属性表!$Q:$Z,N$1,FALSE) -> 77552 | O38: =VLOOKUP($K38,[1]关卡对应玩家属性表!$Q:$Z,O$1,FALSE) -> 6786 | P38: =VLOOKUP($K38,[1]关卡对应玩家属性表!$Q:$Z,P$1,FALSE) -> 6786
A39: 38 | B39: 106000 | C39: 95400 | D39: 26500 | E39: 3975 | F39: 1325 | G39: 1325 | J39: 7 | K39: 1165000 | L39: =VLOOKUP($K39,[1]关卡对应玩家属性表!$Q:$Z,L$1,FALSE) -> 119 | M39: =VLOOKUP($K39,[1]关卡对应玩家属性表!$Q:$Z,M$1,FALSE) -> 498018 | N39: =VLOOKUP($K39,[1]关卡对应玩家属性表!$Q:$Z,N$1,FALSE) -> 77552 | O39: =VLOOKUP($K39,[1]关卡对应玩家属性表!$Q:$Z,O$1,FALSE) -> 6786 | P39: =VLOOKUP($K39,[1]关卡对应玩家属性表!$Q:$Z,P$1,FALSE) -> 6786
A40: 39 | B40: 192000 | C40: 172800 | D40: 48000 | E40: 7200 | F40: 2400 | G40: 2400 | J40: 7 | K40: 1165000 | L40: =VLOOKUP($K40,[1]关卡对应玩家属性表!$Q:$Z,L$1,FALSE) -> 119 | M40: =VLOOKUP($K40,[1]关卡对应玩家属性表!$Q:$Z,M$1,FALSE) -> 498018 | N40: =VLOOKUP($K40,[1]关卡对应玩家属性表!$Q:$Z,N$1,FALSE) -> 77552 | O40: =VLOOKUP($K40,[1]关卡对应玩家属性表!$Q:$Z,O$1,FALSE) -> 6786 | P40: =VLOOKUP($K40,[1]关卡对应玩家属性表!$Q:$Z,P$1,FALSE) -> 6786
A41: 40 | B41: 332000 | C41: 298800 | D41: 83000 | E41: 12450 | F41: 4150 | G41: 4150 | J41: 7 | K41: 1165000 | L41: =VLOOKUP($K41,[1]关卡对应玩家属性表!$Q:$Z,L$1,FALSE) -> 119 | M41: =VLOOKUP($K41,[1]关卡对应玩家属性表!$Q:$Z,M$1,FALSE) -> 498018 | N41: =VLOOKUP($K41,[1]关卡对应玩家属性表!$Q:$Z,N$1,FALSE) -> 77552 | O41: =VLOOKUP($K41,[1]关卡对应玩家属性表!$Q:$Z,O$1,FALSE) -> 6786 | P41: =VLOOKUP($K41,[1]关卡对应玩家属性表!$Q:$Z,P$1,FALSE) -> 6786
A42: 41 | B42: 706000 | C42: 635400 | D42: 176500 | E42: 26475 | F42: 8825 | G42: 8825 | J42: 7 | K42: 1165000 | L42: =VLOOKUP($K42,[1]关卡对应玩家属性表!$Q:$Z,L$1,FALSE) -> 119 | M42: =VLOOKUP($K42,[1]关卡对应玩家属性表!$Q:$Z,M$1,FALSE) -> 498018 | N42: =VLOOKUP($K42,[1]关卡对应玩家属性表!$Q:$Z,N$1,FALSE) -> 77552 | O42: =VLOOKUP($K42,[1]关卡对应玩家属性表!$Q:$Z,O$1,FALSE) -> 6786 | P42: =VLOOKUP($K42,[1]关卡对应玩家属性表!$Q:$Z,P$1,FALSE) -> 6786
A43: 42 | B43: 1165000 | C43: 1048500 | D43: 291250 | E43: 43687.5 | F43: 14562.5 | G43: 14562.5 | J43: 7 | K43: 1165000 | L43: =VLOOKUP($K43,[1]关卡对应玩家属性表!$Q:$Z,L$1,FALSE) -> 119 | M43: =VLOOKUP($K43,[1]关卡对应玩家属性表!$Q:$Z,M$1,FALSE) -> 498018 | N43: =VLOOKUP($K43,[1]关卡对应玩家属性表!$Q:$Z,N$1,FALSE) -> 77552 | O43: =VLOOKUP($K43,[1]关卡对应玩家属性表!$Q:$Z,O$1,FALSE) -> 6786 | P43: =VLOOKUP($K43,[1]关卡对应玩家属性表!$Q:$Z,P$1,FALSE) -> 6786
A44: 43 | B44: 2001000 | C44: 1800900 | D44: 500250 | E44: 75037.5 | F44: 25012.5 | G44: 25012.5 | J44: 8 | K44: 1916000 | L44: =VLOOKUP($K44,[1]关卡对应玩家属性表!$Q:$Z,L$1,FALSE) -> 143 | M44: =VLOOKUP($K44,[1]关卡对应玩家属性表!$Q:$Z,M$1,FALSE) -> 854790 | N44: =VLOOKUP($K44,[1]关卡对应玩家属性表!$Q:$Z,N$1,FALSE) -> 136634 | O44: =VLOOKUP($K44,[1]关卡对应玩家属性表!$Q:$Z,O$1,FALSE) -> 7530 | P44: =VLOOKUP($K44,[1]关卡对应玩家属性表!$Q:$Z,P$1,FALSE) -> 7530
A45: 44 | B45: 2617000 | C45: 2355300 | D45: 654250 | E45: 98137.5 | F45: 32712.5 | G45: 32712.5 | J45: 8 | K45: 1916000 | L45: =VLOOKUP($K45,[1]关卡对应玩家属性表!$Q:$Z,L$1,FALSE) -> 143 | M45: =VLOOKUP($K45,[1]关卡对应玩家属性表!$Q:$Z,M$1,FALSE) -> 854790 | N45: =VLOOKUP($K45,[1]关卡对应玩家属性表!$Q:$Z,N$1,FALSE) -> 136634 | O45: =VLOOKUP($K45,[1]关卡对应玩家属性表!$Q:$Z,O$1,FALSE) -> 7530 | P45: =VLOOKUP($K45,[1]关卡对应玩家属性表!$Q:$Z,P$1,FALSE) -> 7530
A46: 45 | B46: 3168000 | C46: 2851200 | D46: 792000 | E46: 118800 | F46: 39600 | G46: 39600 | J46: 8 | K46: 1916000 | L46: =VLOOKUP($K46,[1]关卡对应玩家属性表!$Q:$Z,L$1,FALSE) -> 143 | M46: =VLOOKUP($K46,[1]关卡对应玩家属性表!$Q:$Z,M$1,FALSE) -> 854790 | N46: =VLOOKUP($K46,[1]关卡对应玩家属性表!$Q:$Z,N$1,FALSE) -> 136634 | O46: =VLOOKUP($K46,[1]关卡对应玩家属性表!$Q:$Z,O$1,FALSE) -> 7530 | P46: =VLOOKUP($K46,[1]关卡对应玩家属性表!$Q:$Z,P$1,FALSE) -> 7530
J47: 8 | K47: 1916000 | L47: =VLOOKUP($K47,[1]关卡对应玩家属性表!$Q:$Z,L$1,FALSE) -> 143 | M47: =VLOOKUP($K47,[1]关卡对应玩家属性表!$Q:$Z,M$1,FALSE) -> 854790 | N47: =VLOOKUP($K47,[1]关卡对应玩家属性表!$Q:$Z,N$1,FALSE) -> 136634 | O47: =VLOOKUP($K47,[1]关卡对应玩家属性表!$Q:$Z,O$1,FALSE) -> 7530 | P47: =VLOOKUP($K47,[1]关卡对应玩家属性表!$Q:$Z,P$1,FALSE) -> 7530
J48: 8 | K48: 1916000 | L48: =VLOOKUP($K48,[1]关卡对应玩家属性表!$Q:$Z,L$1,FALSE) -> 143 | M48: =VLOOKUP($K48,[1]关卡对应玩家属性表!$Q:$Z,M$1,FALSE) -> 854790 | N48: =VLOOKUP($K48,[1]关卡对应玩家属性表!$Q:$Z,N$1,FALSE) -> 136634 | O48: =VLOOKUP($K48,[1]关卡对应玩家属性表!$Q:$Z,O$1,FALSE) -> 7530 | P48: =VLOOKUP($K48,[1]关卡对应玩家属性表!$Q:$Z,P$1,FALSE) -> 7530
J49: 8 | K49: 1916000 | L49: =VLOOKUP($K49,[1]关卡对应玩家属性表!$Q:$Z,L$1,FALSE) -> 143 | M49: =VLOOKUP($K49,[1]关卡对应玩家属性表!$Q:$Z,M$1,FALSE) -> 854790 | N49: =VLOOKUP($K49,[1]关卡对应玩家属性表!$Q:$Z,N$1,FALSE) -> 136634 | O49: =VLOOKUP($K49,[1]关卡对应玩家属性表!$Q:$Z,O$1,FALSE) -> 7530 | P49: =VLOOKUP($K49,[1]关卡对应玩家属性表!$Q:$Z,P$1,FALSE) -> 7530
J50: 9 | K50: 2505000 | L50: =VLOOKUP($K50,[1]关卡对应玩家属性表!$Q:$Z,L$1,FALSE) -> 179 | M50: =VLOOKUP($K50,[1]关卡对应玩家属性表!$Q:$Z,M$1,FALSE) -> 1140102 | N50: =VLOOKUP($K50,[1]关卡对应玩家属性表!$Q:$Z,N$1,FALSE) -> 179407 | O50: =VLOOKUP($K50,[1]关卡对应玩家属性表!$Q:$Z,O$1,FALSE) -> 8772 | P50: =VLOOKUP($K50,[1]关卡对应玩家属性表!$Q:$Z,P$1,FALSE) -> 8772
J51: 9 | K51: 2505000 | L51: =VLOOKUP($K51,[1]关卡对应玩家属性表!$Q:$Z,L$1,FALSE) -> 179 | M51: =VLOOKUP($K51,[1]关卡对应玩家属性表!$Q:$Z,M$1,FALSE) -> 1140102 | N51: =VLOOKUP($K51,[1]关卡对应玩家属性表!$Q:$Z,N$1,FALSE) -> 179407 | O51: =VLOOKUP($K51,[1]关卡对应玩家属性表!$Q:$Z,O$1,FALSE) -> 8772 | P51: =VLOOKUP($K51,[1]关卡对应玩家属性表!$Q:$Z,P$1,FALSE) -> 8772
J52: 9 | K52: 2505000 | L52: =VLOOKUP($K52,[1]关卡对应玩家属性表!$Q:$Z,L$1,FALSE) -> 179 | M52: =VLOOKUP($K52,[1]关卡对应玩家属性表!$Q:$Z,M$1,FALSE) -> 1140102 | N52: =VLOOKUP($K52,[1]关卡对应玩家属性表!$Q:$Z,N$1,FALSE) -> 179407 | O52: =VLOOKUP($K52,[1]关卡对应玩家属性表!$Q:$Z,O$1,FALSE) -> 8772 | P52: =VLOOKUP($K52,[1]关卡对应玩家属性表!$Q:$Z,P$1,FALSE) -> 8772
J53: 9 | K53: 2505000 | L53: =VLOOKUP($K53,[1]关卡对应玩家属性表!$Q:$Z,L$1,FALSE) -> 179 | M53: =VLOOKUP($K53,[1]关卡对应玩家属性表!$Q:$Z,M$1,FALSE) -> 1140102 | N53: =VLOOKUP($K53,[1]关卡对应玩家属性表!$Q:$Z,N$1,FALSE) -> 179407 | O53: =VLOOKUP($K53,[1]关卡对应玩家属性表!$Q:$Z,O$1,FALSE) -> 8772 | P53: =VLOOKUP($K53,[1]关卡对应玩家属性表!$Q:$Z,P$1,FALSE) -> 8772
J54: 9 | K54: 2505000 | L54: =VLOOKUP($K54,[1]关卡对应玩家属性表!$Q:$Z,L$1,FALSE) -> 179 | M54: =VLOOKUP($K54,[1]关卡对应玩家属性表!$Q:$Z,M$1,FALSE) -> 1140102 | N54: =VLOOKUP($K54,[1]关卡对应玩家属性表!$Q:$Z,N$1,FALSE) -> 179407 | O54: =VLOOKUP($K54,[1]关卡对应玩家属性表!$Q:$Z,O$1,FALSE) -> 8772 | P54: =VLOOKUP($K54,[1]关卡对应玩家属性表!$Q:$Z,P$1,FALSE) -> 8772
J55: 9 | K55: 2505000 | L55: =VLOOKUP($K55,[1]关卡对应玩家属性表!$Q:$Z,L$1,FALSE) -> 179 | M55: =VLOOKUP($K55,[1]关卡对应玩家属性表!$Q:$Z,M$1,FALSE) -> 1140102 | N55: =VLOOKUP($K55,[1]关卡对应玩家属性表!$Q:$Z,N$1,FALSE) -> 179407 | O55: =VLOOKUP($K55,[1]关卡对应玩家属性表!$Q:$Z,O$1,FALSE) -> 8772 | P55: =VLOOKUP($K55,[1]关卡对应玩家属性表!$Q:$Z,P$1,FALSE) -> 8772
J56: 10 | K56: 8000 | L56: =VLOOKUP($K56,[1]关卡对应玩家属性表!$Q:$Z,L$1,FALSE) -> 3 | M56: =VLOOKUP($K56,[1]关卡对应玩家属性表!$Q:$Z,M$1,FALSE) -> 2226 | N56: =VLOOKUP($K56,[1]关卡对应玩家属性表!$Q:$Z,N$1,FALSE) -> 477 | O56: =VLOOKUP($K56,[1]关卡对应玩家属性表!$Q:$Z,O$1,FALSE) -> 159 | P56: =VLOOKUP($K56,[1]关卡对应玩家属性表!$Q:$Z,P$1,FALSE) -> 159
J57: 10 | K57: 8000 | L57: =VLOOKUP($K57,[1]关卡对应玩家属性表!$Q:$Z,L$1,FALSE) -> 3 | M57: =VLOOKUP($K57,[1]关卡对应玩家属性表!$Q:$Z,M$1,FALSE) -> 2226 | N57: =VLOOKUP($K57,[1]关卡对应玩家属性表!$Q:$Z,N$1,FALSE) -> 477 | O57: =VLOOKUP($K57,[1]关卡对应玩家属性表!$Q:$Z,O$1,FALSE) -> 159 | P57: =VLOOKUP($K57,[1]关卡对应玩家属性表!$Q:$Z,P$1,FALSE) -> 159
J58: 10 | K58: 8000 | L58: =VLOOKUP($K58,[1]关卡对应玩家属性表!$Q:$Z,L$1,FALSE) -> 3 | M58: =VLOOKUP($K58,[1]关卡对应玩家属性表!$Q:$Z,M$1,FALSE) -> 2226 | N58: =VLOOKUP($K58,[1]关卡对应玩家属性表!$Q:$Z,N$1,FALSE) -> 477 | O58: =VLOOKUP($K58,[1]关卡对应玩家属性表!$Q:$Z,O$1,FALSE) -> 159 | P58: =VLOOKUP($K58,[1]关卡对应玩家属性表!$Q:$Z,P$1,FALSE) -> 159
J59: 10 | K59: 8000 | L59: =VLOOKUP($K59,[1]关卡对应玩家属性表!$Q:$Z,L$1,FALSE) -> 3 | M59: =VLOOKUP($K59,[1]关卡对应玩家属性表!$Q:$Z,M$1,FALSE) -> 2226 | N59: =VLOOKUP($K59,[1]关卡对应玩家属性表!$Q:$Z,N$1,FALSE) -> 477 | O59: =VLOOKUP($K59,[1]关卡对应玩家属性表!$Q:$Z,O$1,FALSE) -> 159 | P59: =VLOOKUP($K59,[1]关卡对应玩家属性表!$Q:$Z,P$1,FALSE) -> 159
J60: 10 | K60: 8000 | L60: =VLOOKUP($K60,[1]关卡对应玩家属性表!$Q:$Z,L$1,FALSE) -> 3 | M60: =VLOOKUP($K60,[1]关卡对应玩家属性表!$Q:$Z,M$1,FALSE) -> 2226 | N60: =VLOOKUP($K60,[1]关卡对应玩家属性表!$Q:$Z,N$1,FALSE) -> 477 | O60: =VLOOKUP($K60,[1]关卡对应玩家属性表!$Q:$Z,O$1,FALSE) -> 159 | P60: =VLOOKUP($K60,[1]关卡对应玩家属性表!$Q:$Z,P$1,FALSE) -> 159
J61: 10 | K61: 8000 | L61: =VLOOKUP($K61,[1]关卡对应玩家属性表!$Q:$Z,L$1,FALSE) -> 3 | M61: =VLOOKUP($K61,[1]关卡对应玩家属性表!$Q:$Z,M$1,FALSE) -> 2226 | N61: =VLOOKUP($K61,[1]关卡对应玩家属性表!$Q:$Z,N$1,FALSE) -> 477 | O61: =VLOOKUP($K61,[1]关卡对应玩家属性表!$Q:$Z,O$1,FALSE) -> 159 | P61: =VLOOKUP($K61,[1]关卡对应玩家属性表!$Q:$Z,P$1,FALSE) -> 159
J62: 11 | K62: 33000 | L62: =VLOOKUP($K62,[1]关卡对应玩家属性表!$Q:$Z,L$1,FALSE) -> 40 | M62: =VLOOKUP($K62,[1]关卡对应玩家属性表!$Q:$Z,M$1,FALSE) -> 9974 | N62: =VLOOKUP($K62,[1]关卡对应玩家属性表!$Q:$Z,N$1,FALSE) -> 1510 | O62: =VLOOKUP($K62,[1]关卡对应玩家属性表!$Q:$Z,O$1,FALSE) -> 452 | P62: =VLOOKUP($K62,[1]关卡对应玩家属性表!$Q:$Z,P$1,FALSE) -> 452
J63: 11 | K63: 33000 | L63: =VLOOKUP($K63,[1]关卡对应玩家属性表!$Q:$Z,L$1,FALSE) -> 40 | M63: =VLOOKUP($K63,[1]关卡对应玩家属性表!$Q:$Z,M$1,FALSE) -> 9974 | N63: =VLOOKUP($K63,[1]关卡对应玩家属性表!$Q:$Z,N$1,FALSE) -> 1510 | O63: =VLOOKUP($K63,[1]关卡对应玩家属性表!$Q:$Z,O$1,FALSE) -> 452 | P63: =VLOOKUP($K63,[1]关卡对应玩家属性表!$Q:$Z,P$1,FALSE) -> 452
J64: 11 | K64: 33000 | L64: =VLOOKUP($K64,[1]关卡对应玩家属性表!$Q:$Z,L$1,FALSE) -> 40 | M64: =VLOOKUP($K64,[1]关卡对应玩家属性表!$Q:$Z,M$1,FALSE) -> 9974 | N64: =VLOOKUP($K64,[1]关卡对应玩家属性表!$Q:$Z,N$1,FALSE) -> 1510 | O64: =VLOOKUP($K64,[1]关卡对应玩家属性表!$Q:$Z,O$1,FALSE) -> 452 | P64: =VLOOKUP($K64,[1]关卡对应玩家属性表!$Q:$Z,P$1,FALSE) -> 452
J65: 11 | K65: 33000 | L65: =VLOOKUP($K65,[1]关卡对应玩家属性表!$Q:$Z,L$1,FALSE) -> 40 | M65: =VLOOKUP($K65,[1]关卡对应玩家属性表!$Q:$Z,M$1,FALSE) -> 9974 | N65: =VLOOKUP($K65,[1]关卡对应玩家属性表!$Q:$Z,N$1,FALSE) -> 1510 | O65: =VLOOKUP($K65,[1]关卡对应玩家属性表!$Q:$Z,O$1,FALSE) -> 452 | P65: =VLOOKUP($K65,[1]关卡对应玩家属性表!$Q:$Z,P$1,FALSE) -> 452
J66: 11 | K66: 33000 | L66: =VLOOKUP($K66,[1]关卡对应玩家属性表!$Q:$Z,L$1,FALSE) -> 40 | M66: =VLOOKUP($K66,[1]关卡对应玩家属性表!$Q:$Z,M$1,FALSE) -> 9974 | N66: =VLOOKUP($K66,[1]关卡对应玩家属性表!$Q:$Z,N$1,FALSE) -> 1510 | O66: =VLOOKUP($K66,[1]关卡对应玩家属性表!$Q:$Z,O$1,FALSE) -> 452 | P66: =VLOOKUP($K66,[1]关卡对应玩家属性表!$Q:$Z,P$1,FALSE) -> 452
J67: 11 | K67: =VLOOKUP(J67,$A:$B,2,FALSE) -> 33000 | L67: =VLOOKUP($K67,[1]关卡对应玩家属性表!$Q:$Z,L$1,FALSE) -> 40 | M67: =VLOOKUP($K67,[1]关卡对应玩家属性表!$Q:$Z,M$1,FALSE) -> 9974 | N67: =VLOOKUP($K67,[1]关卡对应玩家属性表!$Q:$Z,N$1,FALSE) -> 1510 | O67: =VLOOKUP($K67,[1]关卡对应玩家属性表!$Q:$Z,O$1,FALSE) -> 452 | P67: =VLOOKUP($K67,[1]关卡对应玩家属性表!$Q:$Z,P$1,FALSE) -> 452
J68: 12 | K68: 109000 | L68: =VLOOKUP($K68,[1]关卡对应玩家属性表!$Q:$Z,L$1,FALSE) -> 57 | M68: =VLOOKUP($K68,[1]关卡对应玩家属性表!$Q:$Z,M$1,FALSE) -> 35424 | N68: =VLOOKUP($K68,[1]关卡对应玩家属性表!$Q:$Z,N$1,FALSE) -> 6050 | O68: =VLOOKUP($K68,[1]关卡对应玩家属性表!$Q:$Z,O$1,FALSE) -> 1374 | P68: =VLOOKUP($K68,[1]关卡对应玩家属性表!$Q:$Z,P$1,FALSE) -> 1374
J69: 12 | K69: 109000 | L69: =VLOOKUP($K69,[1]关卡对应玩家属性表!$Q:$Z,L$1,FALSE) -> 57 | M69: =VLOOKUP($K69,[1]关卡对应玩家属性表!$Q:$Z,M$1,FALSE) -> 35424 | N69: =VLOOKUP($K69,[1]关卡对应玩家属性表!$Q:$Z,N$1,FALSE) -> 6050 | O69: =VLOOKUP($K69,[1]关卡对应玩家属性表!$Q:$Z,O$1,FALSE) -> 1374 | P69: =VLOOKUP($K69,[1]关卡对应玩家属性表!$Q:$Z,P$1,FALSE) -> 1374
J70: 12 | K70: 109000 | L70: =VLOOKUP($K70,[1]关卡对应玩家属性表!$Q:$Z,L$1,FALSE) -> 57 | M70: =VLOOKUP($K70,[1]关卡对应玩家属性表!$Q:$Z,M$1,FALSE) -> 35424 | N70: =VLOOKUP($K70,[1]关卡对应玩家属性表!$Q:$Z,N$1,FALSE) -> 6050 | O70: =VLOOKUP($K70,[1]关卡对应玩家属性表!$Q:$Z,O$1,FALSE) -> 1374 | P70: =VLOOKUP($K70,[1]关卡对应玩家属性表!$Q:$Z,P$1,FALSE) -> 1374
J71: 12 | K71: 109000 | L71: =VLOOKUP($K71,[1]关卡对应玩家属性表!$Q:$Z,L$1,FALSE) -> 57 | M71: =VLOOKUP($K71,[1]关卡对应玩家属性表!$Q:$Z,M$1,FALSE) -> 35424 | N71: =VLOOKUP($K71,[1]关卡对应玩家属性表!$Q:$Z,N$1,FALSE) -> 6050 | O71: =VLOOKUP($K71,[1]关卡对应玩家属性表!$Q:$Z,O$1,FALSE) -> 1374 | P71: =VLOOKUP($K71,[1]关卡对应玩家属性表!$Q:$Z,P$1,FALSE) -> 1374
J72: 12 | K72: 109000 | L72: =VLOOKUP($K72,[1]关卡对应玩家属性表!$Q:$Z,L$1,FALSE) -> 57 | M72: =VLOOKUP($K72,[1]关卡对应玩家属性表!$Q:$Z,M$1,FALSE) -> 35424 | N72: =VLOOKUP($K72,[1]关卡对应玩家属性表!$Q:$Z,N$1,FALSE) -> 6050 | O72: =VLOOKUP($K72,[1]关卡对应玩家属性表!$Q:$Z,O$1,FALSE) -> 1374 | P72: =VLOOKUP($K72,[1]关卡对应玩家属性表!$Q:$Z,P$1,FALSE) -> 1374
J73: =J67+1 -> 12 | K73: 109000 | L73: =VLOOKUP($K73,[1]关卡对应玩家属性表!$Q:$Z,L$1,FALSE) -> 57 | M73: =VLOOKUP($K73,[1]关卡对应玩家属性表!$Q:$Z,M$1,FALSE) -> 35424 | N73: =VLOOKUP($K73,[1]关卡对应玩家属性表!$Q:$Z,N$1,FALSE) -> 6050 | O73: =VLOOKUP($K73,[1]关卡对应玩家属性表!$Q:$Z,O$1,FALSE) -> 1374 | P73: =VLOOKUP($K73,[1]关卡对应玩家属性表!$Q:$Z,P$1,FALSE) -> 1374
J74: 13 | K74: 291000 | L74: =VLOOKUP($K74,[1]关卡对应玩家属性表!$Q:$Z,L$1,FALSE) -> 70 | M74: =VLOOKUP($K74,[1]关卡对应玩家属性表!$Q:$Z,M$1,FALSE) -> 111512 | N74: =VLOOKUP($K74,[1]关卡对应玩家属性表!$Q:$Z,N$1,FALSE) -> 18446 | O74: =VLOOKUP($K74,[1]关卡对应玩家属性表!$Q:$Z,O$1,FALSE) -> 2410 | P74: =VLOOKUP($K74,[1]关卡对应玩家属性表!$Q:$Z,P$1,FALSE) -> 2410
J75: 13 | K75: 291000 | L75: =VLOOKUP($K75,[1]关卡对应玩家属性表!$Q:$Z,L$1,FALSE) -> 70 | M75: =VLOOKUP($K75,[1]关卡对应玩家属性表!$Q:$Z,M$1,FALSE) -> 111512 | N75: =VLOOKUP($K75,[1]关卡对应玩家属性表!$Q:$Z,N$1,FALSE) -> 18446 | O75: =VLOOKUP($K75,[1]关卡对应玩家属性表!$Q:$Z,O$1,FALSE) -> 2410 | P75: =VLOOKUP($K75,[1]关卡对应玩家属性表!$Q:$Z,P$1,FALSE) -> 2410
J76: 13 | K76: 291000 | L76: =VLOOKUP($K76,[1]关卡对应玩家属性表!$Q:$Z,L$1,FALSE) -> 70 | M76: =VLOOKUP($K76,[1]关卡对应玩家属性表!$Q:$Z,M$1,FALSE) -> 111512 | N76: =VLOOKUP($K76,[1]关卡对应玩家属性表!$Q:$Z,N$1,FALSE) -> 18446 | O76: =VLOOKUP($K76,[1]关卡对应玩家属性表!$Q:$Z,O$1,FALSE) -> 2410 | P76: =VLOOKUP($K76,[1]关卡对应玩家属性表!$Q:$Z,P$1,FALSE) -> 2410
J77: 13 | K77: 291000 | L77: =VLOOKUP($K77,[1]关卡对应玩家属性表!$Q:$Z,L$1,FALSE) -> 70 | M77: =VLOOKUP($K77,[1]关卡对应玩家属性表!$Q:$Z,M$1,FALSE) -> 111512 | N77: =VLOOKUP($K77,[1]关卡对应玩家属性表!$Q:$Z,N$1,FALSE) -> 18446 | O77: =VLOOKUP($K77,[1]关卡对应玩家属性表!$Q:$Z,O$1,FALSE) -> 2410 | P77: =VLOOKUP($K77,[1]关卡对应玩家属性表!$Q:$Z,P$1,FALSE) -> 2410
J78: 13 | K78: 291000 | L78: =VLOOKUP($K78,[1]关卡对应玩家属性表!$Q:$Z,L$1,FALSE) -> 70 | M78: =VLOOKUP($K78,[1]关卡对应玩家属性表!$Q:$Z,M$1,FALSE) -> 111512 | N78: =VLOOKUP($K78,[1]关卡对应玩家属性表!$Q:$Z,N$1,FALSE) -> 18446 | O78: =VLOOKUP($K78,[1]关卡对应玩家属性表!$Q:$Z,O$1,FALSE) -> 2410 | P78: =VLOOKUP($K78,[1]关卡对应玩家属性表!$Q:$Z,P$1,FALSE) -> 2410
J79: 13 | K79: 291000 | L79: =VLOOKUP($K79,[1]关卡对应玩家属性表!$Q:$Z,L$1,FALSE) -> 70 | M79: =VLOOKUP($K79,[1]关卡对应玩家属性表!$Q:$Z,M$1,FALSE) -> 111512 | N79: =VLOOKUP($K79,[1]关卡对应玩家属性表!$Q:$Z,N$1,FALSE) -> 18446 | O79: =VLOOKUP($K79,[1]关卡对应玩家属性表!$Q:$Z,O$1,FALSE) -> 2410 | P79: =VLOOKUP($K79,[1]关卡对应玩家属性表!$Q:$Z,P$1,FALSE) -> 2410
J80: 14 | K80: 570000 | L80: =VLOOKUP($K80,[1]关卡对应玩家属性表!$Q:$Z,L$1,FALSE) -> 81 | M80: =VLOOKUP($K80,[1]关卡对应玩家属性表!$Q:$Z,M$1,FALSE) -> 233540 | N80: =VLOOKUP($K80,[1]关卡对应玩家属性表!$Q:$Z,N$1,FALSE) -> 37348 | O80: =VLOOKUP($K80,[1]关卡对应玩家属性表!$Q:$Z,O$1,FALSE) -> 3860 | P80: =VLOOKUP($K80,[1]关卡对应玩家属性表!$Q:$Z,P$1,FALSE) -> 3860
J81: 14 | K81: 570000 | L81: =VLOOKUP($K81,[1]关卡对应玩家属性表!$Q:$Z,L$1,FALSE) -> 81 | M81: =VLOOKUP($K81,[1]关卡对应玩家属性表!$Q:$Z,M$1,FALSE) -> 233540 | N81: =VLOOKUP($K81,[1]关卡对应玩家属性表!$Q:$Z,N$1,FALSE) -> 37348 | O81: =VLOOKUP($K81,[1]关卡对应玩家属性表!$Q:$Z,O$1,FALSE) -> 3860 | P81: =VLOOKUP($K81,[1]关卡对应玩家属性表!$Q:$Z,P$1,FALSE) -> 3860
J82: 14 | K82: 570000 | L82: =VLOOKUP($K82,[1]关卡对应玩家属性表!$Q:$Z,L$1,FALSE) -> 81 | M82: =VLOOKUP($K82,[1]关卡对应玩家属性表!$Q:$Z,M$1,FALSE) -> 233540 | N82: =VLOOKUP($K82,[1]关卡对应玩家属性表!$Q:$Z,N$1,FALSE) -> 37348 | O82: =VLOOKUP($K82,[1]关卡对应玩家属性表!$Q:$Z,O$1,FALSE) -> 3860 | P82: =VLOOKUP($K82,[1]关卡对应玩家属性表!$Q:$Z,P$1,FALSE) -> 3860
J83: 14 | K83: 570000 | L83: =VLOOKUP($K83,[1]关卡对应玩家属性表!$Q:$Z,L$1,FALSE) -> 81 | M83: =VLOOKUP($K83,[1]关卡对应玩家属性表!$Q:$Z,M$1,FALSE) -> 233540 | N83: =VLOOKUP($K83,[1]关卡对应玩家属性表!$Q:$Z,N$1,FALSE) -> 37348 | O83: =VLOOKUP($K83,[1]关卡对应玩家属性表!$Q:$Z,O$1,FALSE) -> 3860 | P83: =VLOOKUP($K83,[1]关卡对应玩家属性表!$Q:$Z,P$1,FALSE) -> 3860
J84: 14 | K84: 570000 | L84: =VLOOKUP($K84,[1]关卡对应玩家属性表!$Q:$Z,L$1,FALSE) -> 81 | M84: =VLOOKUP($K84,[1]关卡对应玩家属性表!$Q:$Z,M$1,FALSE) -> 233540 | N84: =VLOOKUP($K84,[1]关卡对应玩家属性表!$Q:$Z,N$1,FALSE) -> 37348 | O84: =VLOOKUP($K84,[1]关卡对应玩家属性表!$Q:$Z,O$1,FALSE) -> 3860 | P84: =VLOOKUP($K84,[1]关卡对应玩家属性表!$Q:$Z,P$1,FALSE) -> 3860
J85: 14 | K85: 570000 | L85: =VLOOKUP($K85,[1]关卡对应玩家属性表!$Q:$Z,L$1,FALSE) -> 81 | M85: =VLOOKUP($K85,[1]关卡对应玩家属性表!$Q:$Z,M$1,FALSE) -> 233540 | N85: =VLOOKUP($K85,[1]关卡对应玩家属性表!$Q:$Z,N$1,FALSE) -> 37348 | O85: =VLOOKUP($K85,[1]关卡对应玩家属性表!$Q:$Z,O$1,FALSE) -> 3860 | P85: =VLOOKUP($K85,[1]关卡对应玩家属性表!$Q:$Z,P$1,FALSE) -> 3860
J86: 15 | K86: 1063000 | L86: =VLOOKUP($K86,[1]关卡对应玩家属性表!$Q:$Z,L$1,FALSE) -> 102 | M86: =VLOOKUP($K86,[1]关卡对应玩家属性表!$Q:$Z,M$1,FALSE) -> 451394 | N86: =VLOOKUP($K86,[1]关卡对应玩家属性表!$Q:$Z,N$1,FALSE) -> 70614 | O86: =VLOOKUP($K86,[1]关卡对应玩家属性表!$Q:$Z,O$1,FALSE) -> 6371 | P86: =VLOOKUP($K86,[1]关卡对应玩家属性表!$Q:$Z,P$1,FALSE) -> 6371
J87: 15 | K87: 1063000 | L87: =VLOOKUP($K87,[1]关卡对应玩家属性表!$Q:$Z,L$1,FALSE) -> 102 | M87: =VLOOKUP($K87,[1]关卡对应玩家属性表!$Q:$Z,M$1,FALSE) -> 451394 | N87: =VLOOKUP($K87,[1]关卡对应玩家属性表!$Q:$Z,N$1,FALSE) -> 70614 | O87: =VLOOKUP($K87,[1]关卡对应玩家属性表!$Q:$Z,O$1,FALSE) -> 6371 | P87: =VLOOKUP($K87,[1]关卡对应玩家属性表!$Q:$Z,P$1,FALSE) -> 6371
J88: 15 | K88: 1063000 | L88: =VLOOKUP($K88,[1]关卡对应玩家属性表!$Q:$Z,L$1,FALSE) -> 102 | M88: =VLOOKUP($K88,[1]关卡对应玩家属性表!$Q:$Z,M$1,FALSE) -> 451394 | N88: =VLOOKUP($K88,[1]关卡对应玩家属性表!$Q:$Z,N$1,FALSE) -> 70614 | O88: =VLOOKUP($K88,[1]关卡对应玩家属性表!$Q:$Z,O$1,FALSE) -> 6371 | P88: =VLOOKUP($K88,[1]关卡对应玩家属性表!$Q:$Z,P$1,FALSE) -> 6371
J89: 15 | K89: 1063000 | L89: =VLOOKUP($K89,[1]关卡对应玩家属性表!$Q:$Z,L$1,FALSE) -> 102 | M89: =VLOOKUP($K89,[1]关卡对应玩家属性表!$Q:$Z,M$1,FALSE) -> 451394 | N89: =VLOOKUP($K89,[1]关卡对应玩家属性表!$Q:$Z,N$1,FALSE) -> 70614 | O89: =VLOOKUP($K89,[1]关卡对应玩家属性表!$Q:$Z,O$1,FALSE) -> 6371 | P89: =VLOOKUP($K89,[1]关卡对应玩家属性表!$Q:$Z,P$1,FALSE) -> 6371
J90: 15 | K90: 1063000 | L90: =VLOOKUP($K90,[1]关卡对应玩家属性表!$Q:$Z,L$1,FALSE) -> 102 | M90: =VLOOKUP($K90,[1]关卡对应玩家属性表!$Q:$Z,M$1,FALSE) -> 451394 | N90: =VLOOKUP($K90,[1]关卡对应玩家属性表!$Q:$Z,N$1,FALSE) -> 70614 | O90: =VLOOKUP($K90,[1]关卡对应玩家属性表!$Q:$Z,O$1,FALSE) -> 6371 | P90: =VLOOKUP($K90,[1]关卡对应玩家属性表!$Q:$Z,P$1,FALSE) -> 6371
J91: 15 | K91: 1063000 | L91: =VLOOKUP($K91,[1]关卡对应玩家属性表!$Q:$Z,L$1,FALSE) -> 102 | M91: =VLOOKUP($K91,[1]关卡对应玩家属性表!$Q:$Z,M$1,FALSE) -> 451394 | N91: =VLOOKUP($K91,[1]关卡对应玩家属性表!$Q:$Z,N$1,FALSE) -> 70614 | O91: =VLOOKUP($K91,[1]关卡对应玩家属性表!$Q:$Z,O$1,FALSE) -> 6371 | P91: =VLOOKUP($K91,[1]关卡对应玩家属性表!$Q:$Z,P$1,FALSE) -> 6371
J92: 16 | K92: 1670000 | L92: =VLOOKUP($K92,[1]关卡对应玩家属性表!$Q:$Z,L$1,FALSE) -> 119 | M92: =VLOOKUP($K92,[1]关卡对应玩家属性表!$Q:$Z,M$1,FALSE) -> 739142 | N92: =VLOOKUP($K92,[1]关卡对应玩家属性表!$Q:$Z,N$1,FALSE) -> 118882 | O92: =VLOOKUP($K92,[1]关卡对应玩家属性表!$Q:$Z,O$1,FALSE) -> 6847 | P92: =VLOOKUP($K92,[1]关卡对应玩家属性表!$Q:$Z,P$1,FALSE) -> 6847
J93: 16 | K93: 1670000 | L93: =VLOOKUP($K93,[1]关卡对应玩家属性表!$Q:$Z,L$1,FALSE) -> 119 | M93: =VLOOKUP($K93,[1]关卡对应玩家属性表!$Q:$Z,M$1,FALSE) -> 739142 | N93: =VLOOKUP($K93,[1]关卡对应玩家属性表!$Q:$Z,N$1,FALSE) -> 118882 | O93: =VLOOKUP($K93,[1]关卡对应玩家属性表!$Q:$Z,O$1,FALSE) -> 6847 | P93: =VLOOKUP($K93,[1]关卡对应玩家属性表!$Q:$Z,P$1,FALSE) -> 6847
J94: 16 | K94: 1670000 | L94: =VLOOKUP($K94,[1]关卡对应玩家属性表!$Q:$Z,L$1,FALSE) -> 119 | M94: =VLOOKUP($K94,[1]关卡对应玩家属性表!$Q:$Z,M$1,FALSE) -> 739142 | N94: =VLOOKUP($K94,[1]关卡对应玩家属性表!$Q:$Z,N$1,FALSE) -> 118882 | O94: =VLOOKUP($K94,[1]关卡对应玩家属性表!$Q:$Z,O$1,FALSE) -> 6847 | P94: =VLOOKUP($K94,[1]关卡对应玩家属性表!$Q:$Z,P$1,FALSE) -> 6847
J95: 16 | K95: 1670000 | L95: =VLOOKUP($K95,[1]关卡对应玩家属性表!$Q:$Z,L$1,FALSE) -> 119 | M95: =VLOOKUP($K95,[1]关卡对应玩家属性表!$Q:$Z,M$1,FALSE) -> 739142 | N95: =VLOOKUP($K95,[1]关卡对应玩家属性表!$Q:$Z,N$1,FALSE) -> 118882 | O95: =VLOOKUP($K95,[1]关卡对应玩家属性表!$Q:$Z,O$1,FALSE) -> 6847 | P95: =VLOOKUP($K95,[1]关卡对应玩家属性表!$Q:$Z,P$1,FALSE) -> 6847
J96: 16 | K96: 1670000 | L96: =VLOOKUP($K96,[1]关卡对应玩家属性表!$Q:$Z,L$1,FALSE) -> 119 | M96: =VLOOKUP($K96,[1]关卡对应玩家属性表!$Q:$Z,M$1,FALSE) -> 739142 | N96: =VLOOKUP($K96,[1]关卡对应玩家属性表!$Q:$Z,N$1,FALSE) -> 118882 | O96: =VLOOKUP($K96,[1]关卡对应玩家属性表!$Q:$Z,O$1,FALSE) -> 6847 | P96: =VLOOKUP($K96,[1]关卡对应玩家属性表!$Q:$Z,P$1,FALSE) -> 6847
J97: 16 | K97: 1670000 | L97: =VLOOKUP($K97,[1]关卡对应玩家属性表!$Q:$Z,L$1,FALSE) -> 119 | M97: =VLOOKUP($K97,[1]关卡对应玩家属性表!$Q:$Z,M$1,FALSE) -> 739142 | N97: =VLOOKUP($K97,[1]关卡对应玩家属性表!$Q:$Z,N$1,FALSE) -> 118882 | O97: =VLOOKUP($K97,[1]关卡对应玩家属性表!$Q:$Z,O$1,FALSE) -> 6847 | P97: =VLOOKUP($K97,[1]关卡对应玩家属性表!$Q:$Z,P$1,FALSE) -> 6847
J98: 17 | K98: 2070000 | L98: =VLOOKUP($K98,[1]关卡对应玩家属性表!$Q:$Z,L$1,FALSE) -> 152 | M98: =VLOOKUP($K98,[1]关卡对应玩家属性表!$Q:$Z,M$1,FALSE) -> 929968 | N98: =VLOOKUP($K98,[1]关卡对应玩家属性表!$Q:$Z,N$1,FALSE) -> 147812 | O98: =VLOOKUP($K98,[1]关卡对应玩家属性表!$Q:$Z,O$1,FALSE) -> 7819 | P98: =VLOOKUP($K98,[1]关卡对应玩家属性表!$Q:$Z,P$1,FALSE) -> 7819
J99: 17 | K99: 2070000 | L99: =VLOOKUP($K99,[1]关卡对应玩家属性表!$Q:$Z,L$1,FALSE) -> 152 | M99: =VLOOKUP($K99,[1]关卡对应玩家属性表!$Q:$Z,M$1,FALSE) -> 929968 | N99: =VLOOKUP($K99,[1]关卡对应玩家属性表!$Q:$Z,N$1,FALSE) -> 147812 | O99: =VLOOKUP($K99,[1]关卡对应玩家属性表!$Q:$Z,O$1,FALSE) -> 7819 | P99: =VLOOKUP($K99,[1]关卡对应玩家属性表!$Q:$Z,P$1,FALSE) -> 7819
J100: 17 | K100: 2070000 | L100: =VLOOKUP($K100,[1]关卡对应玩家属性表!$Q:$Z,L$1,FALSE) -> 152 | M100: =VLOOKUP($K100,[1]关卡对应玩家属性表!$Q:$Z,M$1,FALSE) -> 929968 | N100: =VLOOKUP($K100,[1]关卡对应玩家属性表!$Q:$Z,N$1,FALSE) -> 147812 | O100: =VLOOKUP($K100,[1]关卡对应玩家属性表!$Q:$Z,O$1,FALSE) -> 7819 | P100: =VLOOKUP($K100,[1]关卡对应玩家属性表!$Q:$Z,P$1,FALSE) -> 7819
J101: 17 | K101: 2070000 | L101: =VLOOKUP($K101,[1]关卡对应玩家属性表!$Q:$Z,L$1,FALSE) -> 152 | M101: =VLOOKUP($K101,[1]关卡对应玩家属性表!$Q:$Z,M$1,FALSE) -> 929968 | N101: =VLOOKUP($K101,[1]关卡对应玩家属性表!$Q:$Z,N$1,FALSE) -> 147812 | O101: =VLOOKUP($K101,[1]关卡对应玩家属性表!$Q:$Z,O$1,FALSE) -> 7819 | P101: =VLOOKUP($K101,[1]关卡对应玩家属性表!$Q:$Z,P$1,FALSE) -> 7819
J102: 17 | K102: 2070000 | L102: =VLOOKUP($K102,[1]关卡对应玩家属性表!$Q:$Z,L$1,FALSE) -> 152 | M102: =VLOOKUP($K102,[1]关卡对应玩家属性表!$Q:$Z,M$1,FALSE) -> 929968 | N102: =VLOOKUP($K102,[1]关卡对应玩家属性表!$Q:$Z,N$1,FALSE) -> 147812 | O102: =VLOOKUP($K102,[1]关卡对应玩家属性表!$Q:$Z,O$1,FALSE) -> 7819 | P102: =VLOOKUP($K102,[1]关卡对应玩家属性表!$Q:$Z,P$1,FALSE) -> 7819
J103: 17 | K103: 2070000 | L103: =VLOOKUP($K103,[1]关卡对应玩家属性表!$Q:$Z,L$1,FALSE) -> 152 | M103: =VLOOKUP($K103,[1]关卡对应玩家属性表!$Q:$Z,M$1,FALSE) -> 929968 | N103: =VLOOKUP($K103,[1]关卡对应玩家属性表!$Q:$Z,N$1,FALSE) -> 147812 | O103: =VLOOKUP($K103,[1]关卡对应玩家属性表!$Q:$Z,O$1,FALSE) -> 7819 | P103: =VLOOKUP($K103,[1]关卡对应玩家属性表!$Q:$Z,P$1,FALSE) -> 7819
J104: 18 | K104: 2664000 | L104: =VLOOKUP($K104,[1]关卡对应玩家属性表!$Q:$Z,L$1,FALSE) -> 185 | M104: =VLOOKUP($K104,[1]关卡对应玩家属性表!$Q:$Z,M$1,FALSE) -> 1219288 | N104: =VLOOKUP($K104,[1]关卡对应玩家属性表!$Q:$Z,N$1,FALSE) -> 191023 | O104: =VLOOKUP($K104,[1]关卡对应玩家属性表!$Q:$Z,O$1,FALSE) -> 9004 | P104: =VLOOKUP($K104,[1]关卡对应玩家属性表!$Q:$Z,P$1,FALSE) -> 9004
J105: 18 | K105: 2664000 | L105: =VLOOKUP($K105,[1]关卡对应玩家属性表!$Q:$Z,L$1,FALSE) -> 185 | M105: =VLOOKUP($K105,[1]关卡对应玩家属性表!$Q:$Z,M$1,FALSE) -> 1219288 | N105: =VLOOKUP($K105,[1]关卡对应玩家属性表!$Q:$Z,N$1,FALSE) -> 191023 | O105: =VLOOKUP($K105,[1]关卡对应玩家属性表!$Q:$Z,O$1,FALSE) -> 9004 | P105: =VLOOKUP($K105,[1]关卡对应玩家属性表!$Q:$Z,P$1,FALSE) -> 9004
J106: 18 | K106: 2664000 | L106: =VLOOKUP($K106,[1]关卡对应玩家属性表!$Q:$Z,L$1,FALSE) -> 185 | M106: =VLOOKUP($K106,[1]关卡对应玩家属性表!$Q:$Z,M$1,FALSE) -> 1219288 | N106: =VLOOKUP($K106,[1]关卡对应玩家属性表!$Q:$Z,N$1,FALSE) -> 191023 | O106: =VLOOKUP($K106,[1]关卡对应玩家属性表!$Q:$Z,O$1,FALSE) -> 9004 | P106: =VLOOKUP($K106,[1]关卡对应玩家属性表!$Q:$Z,P$1,FALSE) -> 9004
J107: 18 | K107: 2664000 | L107: =VLOOKUP($K107,[1]关卡对应玩家属性表!$Q:$Z,L$1,FALSE) -> 185 | M107: =VLOOKUP($K107,[1]关卡对应玩家属性表!$Q:$Z,M$1,FALSE) -> 1219288 | N107: =VLOOKUP($K107,[1]关卡对应玩家属性表!$Q:$Z,N$1,FALSE) -> 191023 | O107: =VLOOKUP($K107,[1]关卡对应玩家属性表!$Q:$Z,O$1,FALSE) -> 9004 | P107: =VLOOKUP($K107,[1]关卡对应玩家属性表!$Q:$Z,P$1,FALSE) -> 9004
J108: 18 | K108: 2664000 | L108: =VLOOKUP($K108,[1]关卡对应玩家属性表!$Q:$Z,L$1,FALSE) -> 185 | M108: =VLOOKUP($K108,[1]关卡对应玩家属性表!$Q:$Z,M$1,FALSE) -> 1219288 | N108: =VLOOKUP($K108,[1]关卡对应玩家属性表!$Q:$Z,N$1,FALSE) -> 191023 | O108: =VLOOKUP($K108,[1]关卡对应玩家属性表!$Q:$Z,O$1,FALSE) -> 9004 | P108: =VLOOKUP($K108,[1]关卡对应玩家属性表!$Q:$Z,P$1,FALSE) -> 9004
J109: 18 | K109: 2664000 | L109: =VLOOKUP($K109,[1]关卡对应玩家属性表!$Q:$Z,L$1,FALSE) -> 185 | M109: =VLOOKUP($K109,[1]关卡对应玩家属性表!$Q:$Z,M$1,FALSE) -> 1219288 | N109: =VLOOKUP($K109,[1]关卡对应玩家属性表!$Q:$Z,N$1,FALSE) -> 191023 | O109: =VLOOKUP($K109,[1]关卡对应玩家属性表!$Q:$Z,O$1,FALSE) -> 9004 | P109: =VLOOKUP($K109,[1]关卡对应玩家属性表!$Q:$Z,P$1,FALSE) -> 9004
J110: 19 | K110: 12000 | L110: =VLOOKUP($K110,[1]关卡对应玩家属性表!$Q:$Z,L$1,FALSE) -> 5 | M110: =VLOOKUP($K110,[1]关卡对应玩家属性表!$Q:$Z,M$1,FALSE) -> 2268 | N110: =VLOOKUP($K110,[1]关卡对应玩家属性表!$Q:$Z,N$1,FALSE) -> 486 | O110: =VLOOKUP($K110,[1]关卡对应玩家属性表!$Q:$Z,O$1,FALSE) -> 162 | P110: =VLOOKUP($K110,[1]关卡对应玩家属性表!$Q:$Z,P$1,FALSE) -> 162
J111: 19 | K111: 12000 | L111: =VLOOKUP($K111,[1]关卡对应玩家属性表!$Q:$Z,L$1,FALSE) -> 5 | M111: =VLOOKUP($K111,[1]关卡对应玩家属性表!$Q:$Z,M$1,FALSE) -> 2268 | N111: =VLOOKUP($K111,[1]关卡对应玩家属性表!$Q:$Z,N$1,FALSE) -> 486 | O111: =VLOOKUP($K111,[1]关卡对应玩家属性表!$Q:$Z,O$1,FALSE) -> 162 | P111: =VLOOKUP($K111,[1]关卡对应玩家属性表!$Q:$Z,P$1,FALSE) -> 162
J112: 19 | K112: 12000 | L112: =VLOOKUP($K112,[1]关卡对应玩家属性表!$Q:$Z,L$1,FALSE) -> 5 | M112: =VLOOKUP($K112,[1]关卡对应玩家属性表!$Q:$Z,M$1,FALSE) -> 2268 | N112: =VLOOKUP($K112,[1]关卡对应玩家属性表!$Q:$Z,N$1,FALSE) -> 486 | O112: =VLOOKUP($K112,[1]关卡对应玩家属性表!$Q:$Z,O$1,FALSE) -> 162 | P112: =VLOOKUP($K112,[1]关卡对应玩家属性表!$Q:$Z,P$1,FALSE) -> 162
J113: 19 | K113: 12000 | L113: =VLOOKUP($K113,[1]关卡对应玩家属性表!$Q:$Z,L$1,FALSE) -> 5 | M113: =VLOOKUP($K113,[1]关卡对应玩家属性表!$Q:$Z,M$1,FALSE) -> 2268 | N113: =VLOOKUP($K113,[1]关卡对应玩家属性表!$Q:$Z,N$1,FALSE) -> 486 | O113: =VLOOKUP($K113,[1]关卡对应玩家属性表!$Q:$Z,O$1,FALSE) -> 162 | P113: =VLOOKUP($K113,[1]关卡对应玩家属性表!$Q:$Z,P$1,FALSE) -> 162
J114: 19 | K114: 12000 | L114: =VLOOKUP($K114,[1]关卡对应玩家属性表!$Q:$Z,L$1,FALSE) -> 5 | M114: =VLOOKUP($K114,[1]关卡对应玩家属性表!$Q:$Z,M$1,FALSE) -> 2268 | N114: =VLOOKUP($K114,[1]关卡对应玩家属性表!$Q:$Z,N$1,FALSE) -> 486 | O114: =VLOOKUP($K114,[1]关卡对应玩家属性表!$Q:$Z,O$1,FALSE) -> 162 | P114: =VLOOKUP($K114,[1]关卡对应玩家属性表!$Q:$Z,P$1,FALSE) -> 162
J115: 19 | K115: 12000 | L115: =VLOOKUP($K115,[1]关卡对应玩家属性表!$Q:$Z,L$1,FALSE) -> 5 | M115: =VLOOKUP($K115,[1]关卡对应玩家属性表!$Q:$Z,M$1,FALSE) -> 2268 | N115: =VLOOKUP($K115,[1]关卡对应玩家属性表!$Q:$Z,N$1,FALSE) -> 486 | O115: =VLOOKUP($K115,[1]关卡对应玩家属性表!$Q:$Z,O$1,FALSE) -> 162 | P115: =VLOOKUP($K115,[1]关卡对应玩家属性表!$Q:$Z,P$1,FALSE) -> 162
J116: 20 | K116: 59000 | L116: =VLOOKUP($K116,[1]关卡对应玩家属性表!$Q:$Z,L$1,FALSE) -> 50 | M116: =VLOOKUP($K116,[1]关卡对应玩家属性表!$Q:$Z,M$1,FALSE) -> 17888 | N116: =VLOOKUP($K116,[1]关卡对应玩家属性表!$Q:$Z,N$1,FALSE) -> 3117 | O116: =VLOOKUP($K116,[1]关卡对应玩家属性表!$Q:$Z,O$1,FALSE) -> 814 | P116: =VLOOKUP($K116,[1]关卡对应玩家属性表!$Q:$Z,P$1,FALSE) -> 814
J117: 20 | K117: 59000 | L117: =VLOOKUP($K117,[1]关卡对应玩家属性表!$Q:$Z,L$1,FALSE) -> 50 | M117: =VLOOKUP($K117,[1]关卡对应玩家属性表!$Q:$Z,M$1,FALSE) -> 17888 | N117: =VLOOKUP($K117,[1]关卡对应玩家属性表!$Q:$Z,N$1,FALSE) -> 3117 | O117: =VLOOKUP($K117,[1]关卡对应玩家属性表!$Q:$Z,O$1,FALSE) -> 814 | P117: =VLOOKUP($K117,[1]关卡对应玩家属性表!$Q:$Z,P$1,FALSE) -> 814
J118: 20 | K118: 59000 | L118: =VLOOKUP($K118,[1]关卡对应玩家属性表!$Q:$Z,L$1,FALSE) -> 50 | M118: =VLOOKUP($K118,[1]关卡对应玩家属性表!$Q:$Z,M$1,FALSE) -> 17888 | N118: =VLOOKUP($K118,[1]关卡对应玩家属性表!$Q:$Z,N$1,FALSE) -> 3117 | O118: =VLOOKUP($K118,[1]关卡对应玩家属性表!$Q:$Z,O$1,FALSE) -> 814 | P118: =VLOOKUP($K118,[1]关卡对应玩家属性表!$Q:$Z,P$1,FALSE) -> 814
J119: 20 | K119: 59000 | L119: =VLOOKUP($K119,[1]关卡对应玩家属性表!$Q:$Z,L$1,FALSE) -> 50 | M119: =VLOOKUP($K119,[1]关卡对应玩家属性表!$Q:$Z,M$1,FALSE) -> 17888 | N119: =VLOOKUP($K119,[1]关卡对应玩家属性表!$Q:$Z,N$1,FALSE) -> 3117 | O119: =VLOOKUP($K119,[1]关卡对应玩家属性表!$Q:$Z,O$1,FALSE) -> 814 | P119: =VLOOKUP($K119,[1]关卡对应玩家属性表!$Q:$Z,P$1,FALSE) -> 814
J120: 20 | K120: 59000 | L120: =VLOOKUP($K120,[1]关卡对应玩家属性表!$Q:$Z,L$1,FALSE) -> 50 | M120: =VLOOKUP($K120,[1]关卡对应玩家属性表!$Q:$Z,M$1,FALSE) -> 17888 | N120: =VLOOKUP($K120,[1]关卡对应玩家属性表!$Q:$Z,N$1,FALSE) -> 3117 | O120: =VLOOKUP($K120,[1]关卡对应玩家属性表!$Q:$Z,O$1,FALSE) -> 814 | P120: =VLOOKUP($K120,[1]关卡对应玩家属性表!$Q:$Z,P$1,FALSE) -> 814
J121: =J115+1 -> 20 | K121: 59000 | L121: =VLOOKUP($K121,[1]关卡对应玩家属性表!$Q:$Z,L$1,FALSE) -> 50 | M121: =VLOOKUP($K121,[1]关卡对应玩家属性表!$Q:$Z,M$1,FALSE) -> 17888 | N121: =VLOOKUP($K121,[1]关卡对应玩家属性表!$Q:$Z,N$1,FALSE) -> 3117 | O121: =VLOOKUP($K121,[1]关卡对应玩家属性表!$Q:$Z,O$1,FALSE) -> 814 | P121: =VLOOKUP($K121,[1]关卡对应玩家属性表!$Q:$Z,P$1,FALSE) -> 814
J122: =J116+1 -> 21 | K122: 113000 | L122: =VLOOKUP($K122,[1]关卡对应玩家属性表!$Q:$Z,L$1,FALSE) -> 60 | M122: =VLOOKUP($K122,[1]关卡对应玩家属性表!$Q:$Z,M$1,FALSE) -> 36548 | N122: =VLOOKUP($K122,[1]关卡对应玩家属性表!$Q:$Z,N$1,FALSE) -> 6242 | O122: =VLOOKUP($K122,[1]关卡对应玩家属性表!$Q:$Z,O$1,FALSE) -> 1418 | P122: =VLOOKUP($K122,[1]关卡对应玩家属性表!$Q:$Z,P$1,FALSE) -> 1418
J123: 21 | K123: 113000 | L123: =VLOOKUP($K123,[1]关卡对应玩家属性表!$Q:$Z,L$1,FALSE) -> 60 | M123: =VLOOKUP($K123,[1]关卡对应玩家属性表!$Q:$Z,M$1,FALSE) -> 36548 | N123: =VLOOKUP($K123,[1]关卡对应玩家属性表!$Q:$Z,N$1,FALSE) -> 6242 | O123: =VLOOKUP($K123,[1]关卡对应玩家属性表!$Q:$Z,O$1,FALSE) -> 1418 | P123: =VLOOKUP($K123,[1]关卡对应玩家属性表!$Q:$Z,P$1,FALSE) -> 1418
J124: 21 | K124: 113000 | L124: =VLOOKUP($K124,[1]关卡对应玩家属性表!$Q:$Z,L$1,FALSE) -> 60 | M124: =VLOOKUP($K124,[1]关卡对应玩家属性表!$Q:$Z,M$1,FALSE) -> 36548 | N124: =VLOOKUP($K124,[1]关卡对应玩家属性表!$Q:$Z,N$1,FALSE) -> 6242 | O124: =VLOOKUP($K124,[1]关卡对应玩家属性表!$Q:$Z,O$1,FALSE) -> 1418 | P124: =VLOOKUP($K124,[1]关卡对应玩家属性表!$Q:$Z,P$1,FALSE) -> 1418
J125: 21 | K125: 113000 | L125: =VLOOKUP($K125,[1]关卡对应玩家属性表!$Q:$Z,L$1,FALSE) -> 60 | M125: =VLOOKUP($K125,[1]关卡对应玩家属性表!$Q:$Z,M$1,FALSE) -> 36548 | N125: =VLOOKUP($K125,[1]关卡对应玩家属性表!$Q:$Z,N$1,FALSE) -> 6242 | O125: =VLOOKUP($K125,[1]关卡对应玩家属性表!$Q:$Z,O$1,FALSE) -> 1418 | P125: =VLOOKUP($K125,[1]关卡对应玩家属性表!$Q:$Z,P$1,FALSE) -> 1418
J126: 21 | K126: 113000 | L126: =VLOOKUP($K126,[1]关卡对应玩家属性表!$Q:$Z,L$1,FALSE) -> 60 | M126: =VLOOKUP($K126,[1]关卡对应玩家属性表!$Q:$Z,M$1,FALSE) -> 36548 | N126: =VLOOKUP($K126,[1]关卡对应玩家属性表!$Q:$Z,N$1,FALSE) -> 6242 | O126: =VLOOKUP($K126,[1]关卡对应玩家属性表!$Q:$Z,O$1,FALSE) -> 1418 | P126: =VLOOKUP($K126,[1]关卡对应玩家属性表!$Q:$Z,P$1,FALSE) -> 1418
J127: 21 | K127: 113000 | L127: =VLOOKUP($K127,[1]关卡对应玩家属性表!$Q:$Z,L$1,FALSE) -> 60 | M127: =VLOOKUP($K127,[1]关卡对应玩家属性表!$Q:$Z,M$1,FALSE) -> 36548 | N127: =VLOOKUP($K127,[1]关卡对应玩家属性表!$Q:$Z,N$1,FALSE) -> 6242 | O127: =VLOOKUP($K127,[1]关卡对应玩家属性表!$Q:$Z,O$1,FALSE) -> 1418 | P127: =VLOOKUP($K127,[1]关卡对应玩家属性表!$Q:$Z,P$1,FALSE) -> 1418
J128: 22 | K128: 307000 | L128: =VLOOKUP($K128,[1]关卡对应玩家属性表!$Q:$Z,L$1,FALSE) -> 78 | M128: =VLOOKUP($K128,[1]关卡对应玩家属性表!$Q:$Z,M$1,FALSE) -> 117974 | N128: =VLOOKUP($K128,[1]关卡对应玩家属性表!$Q:$Z,N$1,FALSE) -> 19514 | O128: =VLOOKUP($K128,[1]关卡对应玩家属性表!$Q:$Z,O$1,FALSE) -> 2546 | P128: =VLOOKUP($K128,[1]关卡对应玩家属性表!$Q:$Z,P$1,FALSE) -> 2546
J129: 22 | K129: 307000 | L129: =VLOOKUP($K129,[1]关卡对应玩家属性表!$Q:$Z,L$1,FALSE) -> 78 | M129: =VLOOKUP($K129,[1]关卡对应玩家属性表!$Q:$Z,M$1,FALSE) -> 117974 | N129: =VLOOKUP($K129,[1]关卡对应玩家属性表!$Q:$Z,N$1,FALSE) -> 19514 | O129: =VLOOKUP($K129,[1]关卡对应玩家属性表!$Q:$Z,O$1,FALSE) -> 2546 | P129: =VLOOKUP($K129,[1]关卡对应玩家属性表!$Q:$Z,P$1,FALSE) -> 2546
J130: 22 | K130: 307000 | L130: =VLOOKUP($K130,[1]关卡对应玩家属性表!$Q:$Z,L$1,FALSE) -> 78 | M130: =VLOOKUP($K130,[1]关卡对应玩家属性表!$Q:$Z,M$1,FALSE) -> 117974 | N130: =VLOOKUP($K130,[1]关卡对应玩家属性表!$Q:$Z,N$1,FALSE) -> 19514 | O130: =VLOOKUP($K130,[1]关卡对应玩家属性表!$Q:$Z,O$1,FALSE) -> 2546 | P130: =VLOOKUP($K130,[1]关卡对应玩家属性表!$Q:$Z,P$1,FALSE) -> 2546
J131: 22 | K131: =VLOOKUP(J131,$A:$B,2,FALSE) -> 307000 | L131: =VLOOKUP($K131,[1]关卡对应玩家属性表!$Q:$Z,L$1,FALSE) -> 78 | M131: =VLOOKUP($K131,[1]关卡对应玩家属性表!$Q:$Z,M$1,FALSE) -> 117974 | N131: =VLOOKUP($K131,[1]关卡对应玩家属性表!$Q:$Z,N$1,FALSE) -> 19514 | O131: =VLOOKUP($K131,[1]关卡对应玩家属性表!$Q:$Z,O$1,FALSE) -> 2546 | P131: =VLOOKUP($K131,[1]关卡对应玩家属性表!$Q:$Z,P$1,FALSE) -> 2546
J132: 22 | K132: 307000 | L132: =VLOOKUP($K132,[1]关卡对应玩家属性表!$Q:$Z,L$1,FALSE) -> 78 | M132: =VLOOKUP($K132,[1]关卡对应玩家属性表!$Q:$Z,M$1,FALSE) -> 117974 | N132: =VLOOKUP($K132,[1]关卡对应玩家属性表!$Q:$Z,N$1,FALSE) -> 19514 | O132: =VLOOKUP($K132,[1]关卡对应玩家属性表!$Q:$Z,O$1,FALSE) -> 2546 | P132: =VLOOKUP($K132,[1]关卡对应玩家属性表!$Q:$Z,P$1,FALSE) -> 2546
J133: 22 | K133: 307000 | L133: =VLOOKUP($K133,[1]关卡对应玩家属性表!$Q:$Z,L$1,FALSE) -> 78 | M133: =VLOOKUP($K133,[1]关卡对应玩家属性表!$Q:$Z,M$1,FALSE) -> 117974 | N133: =VLOOKUP($K133,[1]关卡对应玩家属性表!$Q:$Z,N$1,FALSE) -> 19514 | O133: =VLOOKUP($K133,[1]关卡对应玩家属性表!$Q:$Z,O$1,FALSE) -> 2546 | P133: =VLOOKUP($K133,[1]关卡对应玩家属性表!$Q:$Z,P$1,FALSE) -> 2546
J134: 23 | K134: 590000 | L134: =VLOOKUP($K134,[1]关卡对应玩家属性表!$Q:$Z,L$1,FALSE) -> 88 | M134: =VLOOKUP($K134,[1]关卡对应玩家属性表!$Q:$Z,M$1,FALSE) -> 241826 | N134: =VLOOKUP($K134,[1]关卡对应玩家属性表!$Q:$Z,N$1,FALSE) -> 38673 | O134: =VLOOKUP($K134,[1]关卡对应玩家属性表!$Q:$Z,O$1,FALSE) -> 3995 | P134: =VLOOKUP($K134,[1]关卡对应玩家属性表!$Q:$Z,P$1,FALSE) -> 3995
J135: 23 | K135: 590000 | L135: =VLOOKUP($K135,[1]关卡对应玩家属性表!$Q:$Z,L$1,FALSE) -> 88 | M135: =VLOOKUP($K135,[1]关卡对应玩家属性表!$Q:$Z,M$1,FALSE) -> 241826 | N135: =VLOOKUP($K135,[1]关卡对应玩家属性表!$Q:$Z,N$1,FALSE) -> 38673 | O135: =VLOOKUP($K135,[1]关卡对应玩家属性表!$Q:$Z,O$1,FALSE) -> 3995 | P135: =VLOOKUP($K135,[1]关卡对应玩家属性表!$Q:$Z,P$1,FALSE) -> 3995
J136: 23 | K136: 590000 | L136: =VLOOKUP($K136,[1]关卡对应玩家属性表!$Q:$Z,L$1,FALSE) -> 88 | M136: =VLOOKUP($K136,[1]关卡对应玩家属性表!$Q:$Z,M$1,FALSE) -> 241826 | N136: =VLOOKUP($K136,[1]关卡对应玩家属性表!$Q:$Z,N$1,FALSE) -> 38673 | O136: =VLOOKUP($K136,[1]关卡对应玩家属性表!$Q:$Z,O$1,FALSE) -> 3995 | P136: =VLOOKUP($K136,[1]关卡对应玩家属性表!$Q:$Z,P$1,FALSE) -> 3995
J137: 23 | K137: 590000 | L137: =VLOOKUP($K137,[1]关卡对应玩家属性表!$Q:$Z,L$1,FALSE) -> 88 | M137: =VLOOKUP($K137,[1]关卡对应玩家属性表!$Q:$Z,M$1,FALSE) -> 241826 | N137: =VLOOKUP($K137,[1]关卡对应玩家属性表!$Q:$Z,N$1,FALSE) -> 38673 | O137: =VLOOKUP($K137,[1]关卡对应玩家属性表!$Q:$Z,O$1,FALSE) -> 3995 | P137: =VLOOKUP($K137,[1]关卡对应玩家属性表!$Q:$Z,P$1,FALSE) -> 3995
J138: 23 | K138: 590000 | L138: =VLOOKUP($K138,[1]关卡对应玩家属性表!$Q:$Z,L$1,FALSE) -> 88 | M138: =VLOOKUP($K138,[1]关卡对应玩家属性表!$Q:$Z,M$1,FALSE) -> 241826 | N138: =VLOOKUP($K138,[1]关卡对应玩家属性表!$Q:$Z,N$1,FALSE) -> 38673 | O138: =VLOOKUP($K138,[1]关卡对应玩家属性表!$Q:$Z,O$1,FALSE) -> 3995 | P138: =VLOOKUP($K138,[1]关卡对应玩家属性表!$Q:$Z,P$1,FALSE) -> 3995
J139: 23 | K139: 590000 | L139: =VLOOKUP($K139,[1]关卡对应玩家属性表!$Q:$Z,L$1,FALSE) -> 88 | M139: =VLOOKUP($K139,[1]关卡对应玩家属性表!$Q:$Z,M$1,FALSE) -> 241826 | N139: =VLOOKUP($K139,[1]关卡对应玩家属性表!$Q:$Z,N$1,FALSE) -> 38673 | O139: =VLOOKUP($K139,[1]关卡对应玩家属性表!$Q:$Z,O$1,FALSE) -> 3995 | P139: =VLOOKUP($K139,[1]关卡对应玩家属性表!$Q:$Z,P$1,FALSE) -> 3995
J140: 24 | K140: 1075000 | L140: =VLOOKUP($K140,[1]关卡对应玩家属性表!$Q:$Z,L$1,FALSE) -> 105 | M140: =VLOOKUP($K140,[1]关卡对应玩家属性表!$Q:$Z,M$1,FALSE) -> 456320 | N140: =VLOOKUP($K140,[1]关卡对应玩家属性表!$Q:$Z,N$1,FALSE) -> 71385 | O140: =VLOOKUP($K140,[1]关卡对应玩家属性表!$Q:$Z,O$1,FALSE) -> 6440 | P140: =VLOOKUP($K140,[1]关卡对应玩家属性表!$Q:$Z,P$1,FALSE) -> 6440
J141: 24 | K141: 1075000 | L141: =VLOOKUP($K141,[1]关卡对应玩家属性表!$Q:$Z,L$1,FALSE) -> 105 | M141: =VLOOKUP($K141,[1]关卡对应玩家属性表!$Q:$Z,M$1,FALSE) -> 456320 | N141: =VLOOKUP($K141,[1]关卡对应玩家属性表!$Q:$Z,N$1,FALSE) -> 71385 | O141: =VLOOKUP($K141,[1]关卡对应玩家属性表!$Q:$Z,O$1,FALSE) -> 6440 | P141: =VLOOKUP($K141,[1]关卡对应玩家属性表!$Q:$Z,P$1,FALSE) -> 6440
J142: 24 | K142: 1075000 | L142: =VLOOKUP($K142,[1]关卡对应玩家属性表!$Q:$Z,L$1,FALSE) -> 105 | M142: =VLOOKUP($K142,[1]关卡对应玩家属性表!$Q:$Z,M$1,FALSE) -> 456320 | N142: =VLOOKUP($K142,[1]关卡对应玩家属性表!$Q:$Z,N$1,FALSE) -> 71385 | O142: =VLOOKUP($K142,[1]关卡对应玩家属性表!$Q:$Z,O$1,FALSE) -> 6440 | P142: =VLOOKUP($K142,[1]关卡对应玩家属性表!$Q:$Z,P$1,FALSE) -> 6440
J143: 24 | K143: 1075000 | L143: =VLOOKUP($K143,[1]关卡对应玩家属性表!$Q:$Z,L$1,FALSE) -> 105 | M143: =VLOOKUP($K143,[1]关卡对应玩家属性表!$Q:$Z,M$1,FALSE) -> 456320 | N143: =VLOOKUP($K143,[1]关卡对应玩家属性表!$Q:$Z,N$1,FALSE) -> 71385 | O143: =VLOOKUP($K143,[1]关卡对应玩家属性表!$Q:$Z,O$1,FALSE) -> 6440 | P143: =VLOOKUP($K143,[1]关卡对应玩家属性表!$Q:$Z,P$1,FALSE) -> 6440
J144: 24 | K144: 1075000 | L144: =VLOOKUP($K144,[1]关卡对应玩家属性表!$Q:$Z,L$1,FALSE) -> 105 | M144: =VLOOKUP($K144,[1]关卡对应玩家属性表!$Q:$Z,M$1,FALSE) -> 456320 | N144: =VLOOKUP($K144,[1]关卡对应玩家属性表!$Q:$Z,N$1,FALSE) -> 71385 | O144: =VLOOKUP($K144,[1]关卡对应玩家属性表!$Q:$Z,O$1,FALSE) -> 6440 | P144: =VLOOKUP($K144,[1]关卡对应玩家属性表!$Q:$Z,P$1,FALSE) -> 6440
J145: 24 | K145: 1075000 | L145: =VLOOKUP($K145,[1]关卡对应玩家属性表!$Q:$Z,L$1,FALSE) -> 105 | M145: =VLOOKUP($K145,[1]关卡对应玩家属性表!$Q:$Z,M$1,FALSE) -> 456320 | N145: =VLOOKUP($K145,[1]关卡对应玩家属性表!$Q:$Z,N$1,FALSE) -> 71385 | O145: =VLOOKUP($K145,[1]关卡对应玩家属性表!$Q:$Z,O$1,FALSE) -> 6440 | P145: =VLOOKUP($K145,[1]关卡对应玩家属性表!$Q:$Z,P$1,FALSE) -> 6440
J146: 25 | K146: 1689000 | L146: =VLOOKUP($K146,[1]关卡对应玩家属性表!$Q:$Z,L$1,FALSE) -> 122 | M146: =VLOOKUP($K146,[1]关卡对应玩家属性表!$Q:$Z,M$1,FALSE) -> 747778 | N146: =VLOOKUP($K146,[1]关卡对应玩家属性表!$Q:$Z,N$1,FALSE) -> 120273 | O146: =VLOOKUP($K146,[1]关卡对应玩家属性表!$Q:$Z,O$1,FALSE) -> 6925 | P146: =VLOOKUP($K146,[1]关卡对应玩家属性表!$Q:$Z,P$1,FALSE) -> 6925
J147: 25 | K147: 1689000 | L147: =VLOOKUP($K147,[1]关卡对应玩家属性表!$Q:$Z,L$1,FALSE) -> 122 | M147: =VLOOKUP($K147,[1]关卡对应玩家属性表!$Q:$Z,M$1,FALSE) -> 747778 | N147: =VLOOKUP($K147,[1]关卡对应玩家属性表!$Q:$Z,N$1,FALSE) -> 120273 | O147: =VLOOKUP($K147,[1]关卡对应玩家属性表!$Q:$Z,O$1,FALSE) -> 6925 | P147: =VLOOKUP($K147,[1]关卡对应玩家属性表!$Q:$Z,P$1,FALSE) -> 6925
J148: 25 | K148: 1689000 | L148: =VLOOKUP($K148,[1]关卡对应玩家属性表!$Q:$Z,L$1,FALSE) -> 122 | M148: =VLOOKUP($K148,[1]关卡对应玩家属性表!$Q:$Z,M$1,FALSE) -> 747778 | N148: =VLOOKUP($K148,[1]关卡对应玩家属性表!$Q:$Z,N$1,FALSE) -> 120273 | O148: =VLOOKUP($K148,[1]关卡对应玩家属性表!$Q:$Z,O$1,FALSE) -> 6925 | P148: =VLOOKUP($K148,[1]关卡对应玩家属性表!$Q:$Z,P$1,FALSE) -> 6925
J149: 25 | K149: 1689000 | L149: =VLOOKUP($K149,[1]关卡对应玩家属性表!$Q:$Z,L$1,FALSE) -> 122 | M149: =VLOOKUP($K149,[1]关卡对应玩家属性表!$Q:$Z,M$1,FALSE) -> 747778 | N149: =VLOOKUP($K149,[1]关卡对应玩家属性表!$Q:$Z,N$1,FALSE) -> 120273 | O149: =VLOOKUP($K149,[1]关卡对应玩家属性表!$Q:$Z,O$1,FALSE) -> 6925 | P149: =VLOOKUP($K149,[1]关卡对应玩家属性表!$Q:$Z,P$1,FALSE) -> 6925
J150: 25 | K150: 1689000 | L150: =VLOOKUP($K150,[1]关卡对应玩家属性表!$Q:$Z,L$1,FALSE) -> 122 | M150: =VLOOKUP($K150,[1]关卡对应玩家属性表!$Q:$Z,M$1,FALSE) -> 747778 | N150: =VLOOKUP($K150,[1]关卡对应玩家属性表!$Q:$Z,N$1,FALSE) -> 120273 | O150: =VLOOKUP($K150,[1]关卡对应玩家属性表!$Q:$Z,O$1,FALSE) -> 6925 | P150: =VLOOKUP($K150,[1]关卡对应玩家属性表!$Q:$Z,P$1,FALSE) -> 6925
J151: 25 | K151: 1689000 | L151: =VLOOKUP($K151,[1]关卡对应玩家属性表!$Q:$Z,L$1,FALSE) -> 122 | M151: =VLOOKUP($K151,[1]关卡对应玩家属性表!$Q:$Z,M$1,FALSE) -> 747778 | N151: =VLOOKUP($K151,[1]关卡对应玩家属性表!$Q:$Z,N$1,FALSE) -> 120273 | O151: =VLOOKUP($K151,[1]关卡对应玩家属性表!$Q:$Z,O$1,FALSE) -> 6925 | P151: =VLOOKUP($K151,[1]关卡对应玩家属性表!$Q:$Z,P$1,FALSE) -> 6925
J152: 26 | K152: 2233000 | L152: =VLOOKUP($K152,[1]关卡对应玩家属性表!$Q:$Z,L$1,FALSE) -> 161 | M152: =VLOOKUP($K152,[1]关卡对应玩家属性表!$Q:$Z,M$1,FALSE) -> 1010172 | N152: =VLOOKUP($K152,[1]关卡对应玩家属性表!$Q:$Z,N$1,FALSE) -> 159725 | O152: =VLOOKUP($K152,[1]关卡对应玩家属性表!$Q:$Z,O$1,FALSE) -> 8118 | P152: =VLOOKUP($K152,[1]关卡对应玩家属性表!$Q:$Z,P$1,FALSE) -> 8118
J153: 26 | K153: 2233000 | L153: =VLOOKUP($K153,[1]关卡对应玩家属性表!$Q:$Z,L$1,FALSE) -> 161 | M153: =VLOOKUP($K153,[1]关卡对应玩家属性表!$Q:$Z,M$1,FALSE) -> 1010172 | N153: =VLOOKUP($K153,[1]关卡对应玩家属性表!$Q:$Z,N$1,FALSE) -> 159725 | O153: =VLOOKUP($K153,[1]关卡对应玩家属性表!$Q:$Z,O$1,FALSE) -> 8118 | P153: =VLOOKUP($K153,[1]关卡对应玩家属性表!$Q:$Z,P$1,FALSE) -> 8118
J154: 26 | K154: 2233000 | L154: =VLOOKUP($K154,[1]关卡对应玩家属性表!$Q:$Z,L$1,FALSE) -> 161 | M154: =VLOOKUP($K154,[1]关卡对应玩家属性表!$Q:$Z,M$1,FALSE) -> 1010172 | N154: =VLOOKUP($K154,[1]关卡对应玩家属性表!$Q:$Z,N$1,FALSE) -> 159725 | O154: =VLOOKUP($K154,[1]关卡对应玩家属性表!$Q:$Z,O$1,FALSE) -> 8118 | P154: =VLOOKUP($K154,[1]关卡对应玩家属性表!$Q:$Z,P$1,FALSE) -> 8118
J155: 26 | K155: 2233000 | L155: =VLOOKUP($K155,[1]关卡对应玩家属性表!$Q:$Z,L$1,FALSE) -> 161 | M155: =VLOOKUP($K155,[1]关卡对应玩家属性表!$Q:$Z,M$1,FALSE) -> 1010172 | N155: =VLOOKUP($K155,[1]关卡对应玩家属性表!$Q:$Z,N$1,FALSE) -> 159725 | O155: =VLOOKUP($K155,[1]关卡对应玩家属性表!$Q:$Z,O$1,FALSE) -> 8118 | P155: =VLOOKUP($K155,[1]关卡对应玩家属性表!$Q:$Z,P$1,FALSE) -> 8118
J156: 26 | K156: 2233000 | L156: =VLOOKUP($K156,[1]关卡对应玩家属性表!$Q:$Z,L$1,FALSE) -> 161 | M156: =VLOOKUP($K156,[1]关卡对应玩家属性表!$Q:$Z,M$1,FALSE) -> 1010172 | N156: =VLOOKUP($K156,[1]关卡对应玩家属性表!$Q:$Z,N$1,FALSE) -> 159725 | O156: =VLOOKUP($K156,[1]关卡对应玩家属性表!$Q:$Z,O$1,FALSE) -> 8118 | P156: =VLOOKUP($K156,[1]关卡对应玩家属性表!$Q:$Z,P$1,FALSE) -> 8118
J157: 26 | K157: 2233000 | L157: =VLOOKUP($K157,[1]关卡对应玩家属性表!$Q:$Z,L$1,FALSE) -> 161 | M157: =VLOOKUP($K157,[1]关卡对应玩家属性表!$Q:$Z,M$1,FALSE) -> 1010172 | N157: =VLOOKUP($K157,[1]关卡对应玩家属性表!$Q:$Z,N$1,FALSE) -> 159725 | O157: =VLOOKUP($K157,[1]关卡对应玩家属性表!$Q:$Z,O$1,FALSE) -> 8118 | P157: =VLOOKUP($K157,[1]关卡对应玩家属性表!$Q:$Z,P$1,FALSE) -> 8118
J158: =J152+1 -> 27 | K158: 2842000 | L158: =VLOOKUP($K158,[1]关卡对应玩家属性表!$Q:$Z,L$1,FALSE) -> 192 | M158: =VLOOKUP($K158,[1]关卡对应玩家属性表!$Q:$Z,M$1,FALSE) -> 1307870 | N158: =VLOOKUP($K158,[1]关卡对应玩家属性表!$Q:$Z,N$1,FALSE) -> 204062 | O158: =VLOOKUP($K158,[1]关卡对应玩家属性表!$Q:$Z,O$1,FALSE) -> 9284 | P158: =VLOOKUP($K158,[1]关卡对应玩家属性表!$Q:$Z,P$1,FALSE) -> 9284
J159: =J153+1 -> 27 | K159: 2842000 | L159: =VLOOKUP($K159,[1]关卡对应玩家属性表!$Q:$Z,L$1,FALSE) -> 192 | M159: =VLOOKUP($K159,[1]关卡对应玩家属性表!$Q:$Z,M$1,FALSE) -> 1307870 | N159: =VLOOKUP($K159,[1]关卡对应玩家属性表!$Q:$Z,N$1,FALSE) -> 204062 | O159: =VLOOKUP($K159,[1]关卡对应玩家属性表!$Q:$Z,O$1,FALSE) -> 9284 | P159: =VLOOKUP($K159,[1]关卡对应玩家属性表!$Q:$Z,P$1,FALSE) -> 9284
J160: 27 | K160: 2842000 | L160: =VLOOKUP($K160,[1]关卡对应玩家属性表!$Q:$Z,L$1,FALSE) -> 192 | M160: =VLOOKUP($K160,[1]关卡对应玩家属性表!$Q:$Z,M$1,FALSE) -> 1307870 | N160: =VLOOKUP($K160,[1]关卡对应玩家属性表!$Q:$Z,N$1,FALSE) -> 204062 | O160: =VLOOKUP($K160,[1]关卡对应玩家属性表!$Q:$Z,O$1,FALSE) -> 9284 | P160: =VLOOKUP($K160,[1]关卡对应玩家属性表!$Q:$Z,P$1,FALSE) -> 9284
J161: 27 | K161: 2842000 | L161: =VLOOKUP($K161,[1]关卡对应玩家属性表!$Q:$Z,L$1,FALSE) -> 192 | M161: =VLOOKUP($K161,[1]关卡对应玩家属性表!$Q:$Z,M$1,FALSE) -> 1307870 | N161: =VLOOKUP($K161,[1]关卡对应玩家属性表!$Q:$Z,N$1,FALSE) -> 204062 | O161: =VLOOKUP($K161,[1]关卡对应玩家属性表!$Q:$Z,O$1,FALSE) -> 9284 | P161: =VLOOKUP($K161,[1]关卡对应玩家属性表!$Q:$Z,P$1,FALSE) -> 9284
J162: 27 | K162: 2842000 | L162: =VLOOKUP($K162,[1]关卡对应玩家属性表!$Q:$Z,L$1,FALSE) -> 192 | M162: =VLOOKUP($K162,[1]关卡对应玩家属性表!$Q:$Z,M$1,FALSE) -> 1307870 | N162: =VLOOKUP($K162,[1]关卡对应玩家属性表!$Q:$Z,N$1,FALSE) -> 204062 | O162: =VLOOKUP($K162,[1]关卡对应玩家属性表!$Q:$Z,O$1,FALSE) -> 9284 | P162: =VLOOKUP($K162,[1]关卡对应玩家属性表!$Q:$Z,P$1,FALSE) -> 9284
J163: 27 | K163: 2842000 | L163: =VLOOKUP($K163,[1]关卡对应玩家属性表!$Q:$Z,L$1,FALSE) -> 192 | M163: =VLOOKUP($K163,[1]关卡对应玩家属性表!$Q:$Z,M$1,FALSE) -> 1307870 | N163: =VLOOKUP($K163,[1]关卡对应玩家属性表!$Q:$Z,N$1,FALSE) -> 204062 | O163: =VLOOKUP($K163,[1]关卡对应玩家属性表!$Q:$Z,O$1,FALSE) -> 9284 | P163: =VLOOKUP($K163,[1]关卡对应玩家属性表!$Q:$Z,P$1,FALSE) -> 9284
J164: 28 | K164: 16000 | L164: =VLOOKUP($K164,[1]关卡对应玩家属性表!$Q:$Z,L$1,FALSE) -> 18 | M164: =VLOOKUP($K164,[1]关卡对应玩家属性表!$Q:$Z,M$1,FALSE) -> 3996 | N164: =VLOOKUP($K164,[1]关卡对应玩家属性表!$Q:$Z,N$1,FALSE) -> 754 | O164: =VLOOKUP($K164,[1]关卡对应玩家属性表!$Q:$Z,O$1,FALSE) -> 222 | P164: =VLOOKUP($K164,[1]关卡对应玩家属性表!$Q:$Z,P$1,FALSE) -> 222
J165: 28 | K165: 16000 | L165: =VLOOKUP($K165,[1]关卡对应玩家属性表!$Q:$Z,L$1,FALSE) -> 18 | M165: =VLOOKUP($K165,[1]关卡对应玩家属性表!$Q:$Z,M$1,FALSE) -> 3996 | N165: =VLOOKUP($K165,[1]关卡对应玩家属性表!$Q:$Z,N$1,FALSE) -> 754 | O165: =VLOOKUP($K165,[1]关卡对应玩家属性表!$Q:$Z,O$1,FALSE) -> 222 | P165: =VLOOKUP($K165,[1]关卡对应玩家属性表!$Q:$Z,P$1,FALSE) -> 222
J166: 28 | K166: 16000 | L166: =VLOOKUP($K166,[1]关卡对应玩家属性表!$Q:$Z,L$1,FALSE) -> 18 | M166: =VLOOKUP($K166,[1]关卡对应玩家属性表!$Q:$Z,M$1,FALSE) -> 3996 | N166: =VLOOKUP($K166,[1]关卡对应玩家属性表!$Q:$Z,N$1,FALSE) -> 754 | O166: =VLOOKUP($K166,[1]关卡对应玩家属性表!$Q:$Z,O$1,FALSE) -> 222 | P166: =VLOOKUP($K166,[1]关卡对应玩家属性表!$Q:$Z,P$1,FALSE) -> 222
J167: 28 | K167: 16000 | L167: =VLOOKUP($K167,[1]关卡对应玩家属性表!$Q:$Z,L$1,FALSE) -> 18 | M167: =VLOOKUP($K167,[1]关卡对应玩家属性表!$Q:$Z,M$1,FALSE) -> 3996 | N167: =VLOOKUP($K167,[1]关卡对应玩家属性表!$Q:$Z,N$1,FALSE) -> 754 | O167: =VLOOKUP($K167,[1]关卡对应玩家属性表!$Q:$Z,O$1,FALSE) -> 222 | P167: =VLOOKUP($K167,[1]关卡对应玩家属性表!$Q:$Z,P$1,FALSE) -> 222
J168: 28 | K168: 16000 | L168: =VLOOKUP($K168,[1]关卡对应玩家属性表!$Q:$Z,L$1,FALSE) -> 18 | M168: =VLOOKUP($K168,[1]关卡对应玩家属性表!$Q:$Z,M$1,FALSE) -> 3996 | N168: =VLOOKUP($K168,[1]关卡对应玩家属性表!$Q:$Z,N$1,FALSE) -> 754 | O168: =VLOOKUP($K168,[1]关卡对应玩家属性表!$Q:$Z,O$1,FALSE) -> 222 | P168: =VLOOKUP($K168,[1]关卡对应玩家属性表!$Q:$Z,P$1,FALSE) -> 222
J169: 28 | K169: 16000 | L169: =VLOOKUP($K169,[1]关卡对应玩家属性表!$Q:$Z,L$1,FALSE) -> 18 | M169: =VLOOKUP($K169,[1]关卡对应玩家属性表!$Q:$Z,M$1,FALSE) -> 3996 | N169: =VLOOKUP($K169,[1]关卡对应玩家属性表!$Q:$Z,N$1,FALSE) -> 754 | O169: =VLOOKUP($K169,[1]关卡对应玩家属性表!$Q:$Z,O$1,FALSE) -> 222 | P169: =VLOOKUP($K169,[1]关卡对应玩家属性表!$Q:$Z,P$1,FALSE) -> 222
J170: 29 | K170: 94000 | L170: =VLOOKUP($K170,[1]关卡对应玩家属性表!$Q:$Z,L$1,FALSE) -> 51 | M170: =VLOOKUP($K170,[1]关卡对应玩家属性表!$Q:$Z,M$1,FALSE) -> 28898 | N170: =VLOOKUP($K170,[1]关卡对应玩家属性表!$Q:$Z,N$1,FALSE) -> 5028 | O170: =VLOOKUP($K170,[1]关卡对应玩家属性表!$Q:$Z,O$1,FALSE) -> 1295 | P170: =VLOOKUP($K170,[1]关卡对应玩家属性表!$Q:$Z,P$1,FALSE) -> 1295
J171: 29 | K171: 94000 | L171: =VLOOKUP($K171,[1]关卡对应玩家属性表!$Q:$Z,L$1,FALSE) -> 51 | M171: =VLOOKUP($K171,[1]关卡对应玩家属性表!$Q:$Z,M$1,FALSE) -> 28898 | N171: =VLOOKUP($K171,[1]关卡对应玩家属性表!$Q:$Z,N$1,FALSE) -> 5028 | O171: =VLOOKUP($K171,[1]关卡对应玩家属性表!$Q:$Z,O$1,FALSE) -> 1295 | P171: =VLOOKUP($K171,[1]关卡对应玩家属性表!$Q:$Z,P$1,FALSE) -> 1295
J172: 29 | K172: 94000 | L172: =VLOOKUP($K172,[1]关卡对应玩家属性表!$Q:$Z,L$1,FALSE) -> 51 | M172: =VLOOKUP($K172,[1]关卡对应玩家属性表!$Q:$Z,M$1,FALSE) -> 28898 | N172: =VLOOKUP($K172,[1]关卡对应玩家属性表!$Q:$Z,N$1,FALSE) -> 5028 | O172: =VLOOKUP($K172,[1]关卡对应玩家属性表!$Q:$Z,O$1,FALSE) -> 1295 | P172: =VLOOKUP($K172,[1]关卡对应玩家属性表!$Q:$Z,P$1,FALSE) -> 1295
J173: 29 | K173: 94000 | L173: =VLOOKUP($K173,[1]关卡对应玩家属性表!$Q:$Z,L$1,FALSE) -> 51 | M173: =VLOOKUP($K173,[1]关卡对应玩家属性表!$Q:$Z,M$1,FALSE) -> 28898 | N173: =VLOOKUP($K173,[1]关卡对应玩家属性表!$Q:$Z,N$1,FALSE) -> 5028 | O173: =VLOOKUP($K173,[1]关卡对应玩家属性表!$Q:$Z,O$1,FALSE) -> 1295 | P173: =VLOOKUP($K173,[1]关卡对应玩家属性表!$Q:$Z,P$1,FALSE) -> 1295
J174: 29 | K174: 94000 | L174: =VLOOKUP($K174,[1]关卡对应玩家属性表!$Q:$Z,L$1,FALSE) -> 51 | M174: =VLOOKUP($K174,[1]关卡对应玩家属性表!$Q:$Z,M$1,FALSE) -> 28898 | N174: =VLOOKUP($K174,[1]关卡对应玩家属性表!$Q:$Z,N$1,FALSE) -> 5028 | O174: =VLOOKUP($K174,[1]关卡对应玩家属性表!$Q:$Z,O$1,FALSE) -> 1295 | P174: =VLOOKUP($K174,[1]关卡对应玩家属性表!$Q:$Z,P$1,FALSE) -> 1295
J175: 29 | K175: 94000 | L175: =VLOOKUP($K175,[1]关卡对应玩家属性表!$Q:$Z,L$1,FALSE) -> 51 | M175: =VLOOKUP($K175,[1]关卡对应玩家属性表!$Q:$Z,M$1,FALSE) -> 28898 | N175: =VLOOKUP($K175,[1]关卡对应玩家属性表!$Q:$Z,N$1,FALSE) -> 5028 | O175: =VLOOKUP($K175,[1]关卡对应玩家属性表!$Q:$Z,O$1,FALSE) -> 1295 | P175: =VLOOKUP($K175,[1]关卡对应玩家属性表!$Q:$Z,P$1,FALSE) -> 1295
J176: 30 | K176: 123000 | L176: =VLOOKUP($K176,[1]关卡对应玩家属性表!$Q:$Z,L$1,FALSE) -> 60 | M176: =VLOOKUP($K176,[1]关卡对应玩家属性表!$Q:$Z,M$1,FALSE) -> 42202 | N176: =VLOOKUP($K176,[1]关卡对应玩家属性表!$Q:$Z,N$1,FALSE) -> 7062 | O176: =VLOOKUP($K176,[1]关卡对应玩家属性表!$Q:$Z,O$1,FALSE) -> 1420 | P176: =VLOOKUP($K176,[1]关卡对应玩家属性表!$Q:$Z,P$1,FALSE) -> 1420
J177: 30 | K177: 123000 | L177: =VLOOKUP($K177,[1]关卡对应玩家属性表!$Q:$Z,L$1,FALSE) -> 60 | M177: =VLOOKUP($K177,[1]关卡对应玩家属性表!$Q:$Z,M$1,FALSE) -> 42202 | N177: =VLOOKUP($K177,[1]关卡对应玩家属性表!$Q:$Z,N$1,FALSE) -> 7062 | O177: =VLOOKUP($K177,[1]关卡对应玩家属性表!$Q:$Z,O$1,FALSE) -> 1420 | P177: =VLOOKUP($K177,[1]关卡对应玩家属性表!$Q:$Z,P$1,FALSE) -> 1420
J178: 30 | K178: 123000 | L178: =VLOOKUP($K178,[1]关卡对应玩家属性表!$Q:$Z,L$1,FALSE) -> 60 | M178: =VLOOKUP($K178,[1]关卡对应玩家属性表!$Q:$Z,M$1,FALSE) -> 42202 | N178: =VLOOKUP($K178,[1]关卡对应玩家属性表!$Q:$Z,N$1,FALSE) -> 7062 | O178: =VLOOKUP($K178,[1]关卡对应玩家属性表!$Q:$Z,O$1,FALSE) -> 1420 | P178: =VLOOKUP($K178,[1]关卡对应玩家属性表!$Q:$Z,P$1,FALSE) -> 1420
J179: 30 | K179: 123000 | L179: =VLOOKUP($K179,[1]关卡对应玩家属性表!$Q:$Z,L$1,FALSE) -> 60 | M179: =VLOOKUP($K179,[1]关卡对应玩家属性表!$Q:$Z,M$1,FALSE) -> 42202 | N179: =VLOOKUP($K179,[1]关卡对应玩家属性表!$Q:$Z,N$1,FALSE) -> 7062 | O179: =VLOOKUP($K179,[1]关卡对应玩家属性表!$Q:$Z,O$1,FALSE) -> 1420 | P179: =VLOOKUP($K179,[1]关卡对应玩家属性表!$Q:$Z,P$1,FALSE) -> 1420
J180: 30 | K180: 123000 | L180: =VLOOKUP($K180,[1]关卡对应玩家属性表!$Q:$Z,L$1,FALSE) -> 60 | M180: =VLOOKUP($K180,[1]关卡对应玩家属性表!$Q:$Z,M$1,FALSE) -> 42202 | N180: =VLOOKUP($K180,[1]关卡对应玩家属性表!$Q:$Z,N$1,FALSE) -> 7062 | O180: =VLOOKUP($K180,[1]关卡对应玩家属性表!$Q:$Z,O$1,FALSE) -> 1420 | P180: =VLOOKUP($K180,[1]关卡对应玩家属性表!$Q:$Z,P$1,FALSE) -> 1420
J181: 30 | K181: 123000 | L181: =VLOOKUP($K181,[1]关卡对应玩家属性表!$Q:$Z,L$1,FALSE) -> 60 | M181: =VLOOKUP($K181,[1]关卡对应玩家属性表!$Q:$Z,M$1,FALSE) -> 42202 | N181: =VLOOKUP($K181,[1]关卡对应玩家属性表!$Q:$Z,N$1,FALSE) -> 7062 | O181: =VLOOKUP($K181,[1]关卡对应玩家属性表!$Q:$Z,O$1,FALSE) -> 1420 | P181: =VLOOKUP($K181,[1]关卡对应玩家属性表!$Q:$Z,P$1,FALSE) -> 1420
J182: 31 | K182: 327000 | L182: =VLOOKUP($K182,[1]关卡对应玩家属性表!$Q:$Z,L$1,FALSE) -> 78 | M182: =VLOOKUP($K182,[1]关卡对应玩家属性表!$Q:$Z,M$1,FALSE) -> 127838 | N182: =VLOOKUP($K182,[1]关卡对应玩家属性表!$Q:$Z,N$1,FALSE) -> 21068 | O182: =VLOOKUP($K182,[1]关卡对应玩家属性表!$Q:$Z,O$1,FALSE) -> 2549 | P182: =VLOOKUP($K182,[1]关卡对应玩家属性表!$Q:$Z,P$1,FALSE) -> 2549
J183: 31 | K183: 327000 | L183: =VLOOKUP($K183,[1]关卡对应玩家属性表!$Q:$Z,L$1,FALSE) -> 78 | M183: =VLOOKUP($K183,[1]关卡对应玩家属性表!$Q:$Z,M$1,FALSE) -> 127838 | N183: =VLOOKUP($K183,[1]关卡对应玩家属性表!$Q:$Z,N$1,FALSE) -> 21068 | O183: =VLOOKUP($K183,[1]关卡对应玩家属性表!$Q:$Z,O$1,FALSE) -> 2549 | P183: =VLOOKUP($K183,[1]关卡对应玩家属性表!$Q:$Z,P$1,FALSE) -> 2549
J184: 31 | K184: 327000 | L184: =VLOOKUP($K184,[1]关卡对应玩家属性表!$Q:$Z,L$1,FALSE) -> 78 | M184: =VLOOKUP($K184,[1]关卡对应玩家属性表!$Q:$Z,M$1,FALSE) -> 127838 | N184: =VLOOKUP($K184,[1]关卡对应玩家属性表!$Q:$Z,N$1,FALSE) -> 21068 | O184: =VLOOKUP($K184,[1]关卡对应玩家属性表!$Q:$Z,O$1,FALSE) -> 2549 | P184: =VLOOKUP($K184,[1]关卡对应玩家属性表!$Q:$Z,P$1,FALSE) -> 2549
J185: 31 | K185: 327000 | L185: =VLOOKUP($K185,[1]关卡对应玩家属性表!$Q:$Z,L$1,FALSE) -> 78 | M185: =VLOOKUP($K185,[1]关卡对应玩家属性表!$Q:$Z,M$1,FALSE) -> 127838 | N185: =VLOOKUP($K185,[1]关卡对应玩家属性表!$Q:$Z,N$1,FALSE) -> 21068 | O185: =VLOOKUP($K185,[1]关卡对应玩家属性表!$Q:$Z,O$1,FALSE) -> 2549 | P185: =VLOOKUP($K185,[1]关卡对应玩家属性表!$Q:$Z,P$1,FALSE) -> 2549
J186: 31 | K186: 327000 | L186: =VLOOKUP($K186,[1]关卡对应玩家属性表!$Q:$Z,L$1,FALSE) -> 78 | M186: =VLOOKUP($K186,[1]关卡对应玩家属性表!$Q:$Z,M$1,FALSE) -> 127838 | N186: =VLOOKUP($K186,[1]关卡对应玩家属性表!$Q:$Z,N$1,FALSE) -> 21068 | O186: =VLOOKUP($K186,[1]关卡对应玩家属性表!$Q:$Z,O$1,FALSE) -> 2549 | P186: =VLOOKUP($K186,[1]关卡对应玩家属性表!$Q:$Z,P$1,FALSE) -> 2549
J187: 31 | K187: 327000 | L187: =VLOOKUP($K187,[1]关卡对应玩家属性表!$Q:$Z,L$1,FALSE) -> 78 | M187: =VLOOKUP($K187,[1]关卡对应玩家属性表!$Q:$Z,M$1,FALSE) -> 127838 | N187: =VLOOKUP($K187,[1]关卡对应玩家属性表!$Q:$Z,N$1,FALSE) -> 21068 | O187: =VLOOKUP($K187,[1]关卡对应玩家属性表!$Q:$Z,O$1,FALSE) -> 2549 | P187: =VLOOKUP($K187,[1]关卡对应玩家属性表!$Q:$Z,P$1,FALSE) -> 2549
J188: 32 | K188: 703000 | L188: =VLOOKUP($K188,[1]关卡对应玩家属性表!$Q:$Z,L$1,FALSE) -> 99 | M188: =VLOOKUP($K188,[1]关卡对应玩家属性表!$Q:$Z,M$1,FALSE) -> 298052 | N188: =VLOOKUP($K188,[1]关卡对应玩家属性表!$Q:$Z,N$1,FALSE) -> 46634 | O188: =VLOOKUP($K188,[1]关卡对应玩家属性表!$Q:$Z,O$1,FALSE) -> 4226 | P188: =VLOOKUP($K188,[1]关卡对应玩家属性表!$Q:$Z,P$1,FALSE) -> 4226
J189: 32 | K189: 703000 | L189: =VLOOKUP($K189,[1]关卡对应玩家属性表!$Q:$Z,L$1,FALSE) -> 99 | M189: =VLOOKUP($K189,[1]关卡对应玩家属性表!$Q:$Z,M$1,FALSE) -> 298052 | N189: =VLOOKUP($K189,[1]关卡对应玩家属性表!$Q:$Z,N$1,FALSE) -> 46634 | O189: =VLOOKUP($K189,[1]关卡对应玩家属性表!$Q:$Z,O$1,FALSE) -> 4226 | P189: =VLOOKUP($K189,[1]关卡对应玩家属性表!$Q:$Z,P$1,FALSE) -> 4226
J190: 32 | K190: 703000 | L190: =VLOOKUP($K190,[1]关卡对应玩家属性表!$Q:$Z,L$1,FALSE) -> 99 | M190: =VLOOKUP($K190,[1]关卡对应玩家属性表!$Q:$Z,M$1,FALSE) -> 298052 | N190: =VLOOKUP($K190,[1]关卡对应玩家属性表!$Q:$Z,N$1,FALSE) -> 46634 | O190: =VLOOKUP($K190,[1]关卡对应玩家属性表!$Q:$Z,O$1,FALSE) -> 4226 | P190: =VLOOKUP($K190,[1]关卡对应玩家属性表!$Q:$Z,P$1,FALSE) -> 4226
J191: 32 | K191: 703000 | L191: =VLOOKUP($K191,[1]关卡对应玩家属性表!$Q:$Z,L$1,FALSE) -> 99 | M191: =VLOOKUP($K191,[1]关卡对应玩家属性表!$Q:$Z,M$1,FALSE) -> 298052 | N191: =VLOOKUP($K191,[1]关卡对应玩家属性表!$Q:$Z,N$1,FALSE) -> 46634 | O191: =VLOOKUP($K191,[1]关卡对应玩家属性表!$Q:$Z,O$1,FALSE) -> 4226 | P191: =VLOOKUP($K191,[1]关卡对应玩家属性表!$Q:$Z,P$1,FALSE) -> 4226
J192: 32 | K192: 703000 | L192: =VLOOKUP($K192,[1]关卡对应玩家属性表!$Q:$Z,L$1,FALSE) -> 99 | M192: =VLOOKUP($K192,[1]关卡对应玩家属性表!$Q:$Z,M$1,FALSE) -> 298052 | N192: =VLOOKUP($K192,[1]关卡对应玩家属性表!$Q:$Z,N$1,FALSE) -> 46634 | O192: =VLOOKUP($K192,[1]关卡对应玩家属性表!$Q:$Z,O$1,FALSE) -> 4226 | P192: =VLOOKUP($K192,[1]关卡对应玩家属性表!$Q:$Z,P$1,FALSE) -> 4226
J193: 32 | K193: 703000 | L193: =VLOOKUP($K193,[1]关卡对应玩家属性表!$Q:$Z,L$1,FALSE) -> 99 | M193: =VLOOKUP($K193,[1]关卡对应玩家属性表!$Q:$Z,M$1,FALSE) -> 298052 | N193: =VLOOKUP($K193,[1]关卡对应玩家属性表!$Q:$Z,N$1,FALSE) -> 46634 | O193: =VLOOKUP($K193,[1]关卡对应玩家属性表!$Q:$Z,O$1,FALSE) -> 4226 | P193: =VLOOKUP($K193,[1]关卡对应玩家属性表!$Q:$Z,P$1,FALSE) -> 4226
J194: 33 | K194: 1156000 | L194: =VLOOKUP($K194,[1]关卡对应玩家属性表!$Q:$Z,L$1,FALSE) -> 117 | M194: =VLOOKUP($K194,[1]关卡对应玩家属性表!$Q:$Z,M$1,FALSE) -> 494180 | N194: =VLOOKUP($K194,[1]关卡对应玩家属性表!$Q:$Z,N$1,FALSE) -> 76953 | O194: =VLOOKUP($K194,[1]关卡对应玩家属性表!$Q:$Z,O$1,FALSE) -> 6734 | P194: =VLOOKUP($K194,[1]关卡对应玩家属性表!$Q:$Z,P$1,FALSE) -> 6734
J195: 33 | K195: =VLOOKUP(J195,$A:$B,2,FALSE) -> 1156000 | L195: =VLOOKUP($K195,[1]关卡对应玩家属性表!$Q:$Z,L$1,FALSE) -> 117 | M195: =VLOOKUP($K195,[1]关卡对应玩家属性表!$Q:$Z,M$1,FALSE) -> 494180 | N195: =VLOOKUP($K195,[1]关卡对应玩家属性表!$Q:$Z,N$1,FALSE) -> 76953 | O195: =VLOOKUP($K195,[1]关卡对应玩家属性表!$Q:$Z,O$1,FALSE) -> 6734 | P195: =VLOOKUP($K195,[1]关卡对应玩家属性表!$Q:$Z,P$1,FALSE) -> 6734
J196: 33 | K196: 1156000 | L196: =VLOOKUP($K196,[1]关卡对应玩家属性表!$Q:$Z,L$1,FALSE) -> 117 | M196: =VLOOKUP($K196,[1]关卡对应玩家属性表!$Q:$Z,M$1,FALSE) -> 494180 | N196: =VLOOKUP($K196,[1]关卡对应玩家属性表!$Q:$Z,N$1,FALSE) -> 76953 | O196: =VLOOKUP($K196,[1]关卡对应玩家属性表!$Q:$Z,O$1,FALSE) -> 6734 | P196: =VLOOKUP($K196,[1]关卡对应玩家属性表!$Q:$Z,P$1,FALSE) -> 6734
J197: 33 | K197: 1156000 | L197: =VLOOKUP($K197,[1]关卡对应玩家属性表!$Q:$Z,L$1,FALSE) -> 117 | M197: =VLOOKUP($K197,[1]关卡对应玩家属性表!$Q:$Z,M$1,FALSE) -> 494180 | N197: =VLOOKUP($K197,[1]关卡对应玩家属性表!$Q:$Z,N$1,FALSE) -> 76953 | O197: =VLOOKUP($K197,[1]关卡对应玩家属性表!$Q:$Z,O$1,FALSE) -> 6734 | P197: =VLOOKUP($K197,[1]关卡对应玩家属性表!$Q:$Z,P$1,FALSE) -> 6734
J198: 33 | K198: 1156000 | L198: =VLOOKUP($K198,[1]关卡对应玩家属性表!$Q:$Z,L$1,FALSE) -> 117 | M198: =VLOOKUP($K198,[1]关卡对应玩家属性表!$Q:$Z,M$1,FALSE) -> 494180 | N198: =VLOOKUP($K198,[1]关卡对应玩家属性表!$Q:$Z,N$1,FALSE) -> 76953 | O198: =VLOOKUP($K198,[1]关卡对应玩家属性表!$Q:$Z,O$1,FALSE) -> 6734 | P198: =VLOOKUP($K198,[1]关卡对应玩家属性表!$Q:$Z,P$1,FALSE) -> 6734
J199: 33 | K199: 1156000 | L199: =VLOOKUP($K199,[1]关卡对应玩家属性表!$Q:$Z,L$1,FALSE) -> 117 | M199: =VLOOKUP($K199,[1]关卡对应玩家属性表!$Q:$Z,M$1,FALSE) -> 494180 | N199: =VLOOKUP($K199,[1]关卡对应玩家属性表!$Q:$Z,N$1,FALSE) -> 76953 | O199: =VLOOKUP($K199,[1]关卡对应玩家属性表!$Q:$Z,O$1,FALSE) -> 6734 | P199: =VLOOKUP($K199,[1]关卡对应玩家属性表!$Q:$Z,P$1,FALSE) -> 6734
J200: 34 | K200: 1846000 | L200: =VLOOKUP($K200,[1]关卡对应玩家属性表!$Q:$Z,L$1,FALSE) -> 134 | M200: =VLOOKUP($K200,[1]关卡对应玩家属性表!$Q:$Z,M$1,FALSE) -> 823662 | N200: =VLOOKUP($K200,[1]关卡对应玩家属性表!$Q:$Z,N$1,FALSE) -> 131659 | O200: =VLOOKUP($K200,[1]关卡对应玩家属性表!$Q:$Z,O$1,FALSE) -> 7260 | P200: =VLOOKUP($K200,[1]关卡对应玩家属性表!$Q:$Z,P$1,FALSE) -> 7260
... 71 more rows
